{"text_format":"1","workbook":"xlsx","n_sheets":30,"sheets":["DocumentationPage","CoverLetter","GeneralInstructions","StepbyStep...","Agency Summary","RDS","OIR-TELECOM","OIR-TSS","OIR-SDS","OIR-OPER","OIR-QA","OIR-PRD","OIR-DBA","OIR-CS","OIR-Admin","Insurance","LEGAL","EXEC","Budget","Accounts","Admin","OBF","FABS","ITM","HRO","Audit","OIG","Shared Services","OIR PMC","ERP"],"not_rendered":{"charts":0,"images":4,"macros":1,"external_links":1,"defined_names":145,"comments":12,"pivot_tables":0},"unopened":[],"bounds":{"document_bytes":16777216,"sheet_cells":100000,"rows_first":2000,"rows_last":500,"rows_between":2000,"halvings":0,"cell_chars":16384,"cell_head_chars":4096},"cells_cut":0,"cells_raw":0,"read":"whole","date_system":"1900"}

{"sheet":"DocumentationPage","index":0,"n_rows":43,"n_cols":4,"rows_kept":43,"cut":false,"hidden":false,"merged":[[1,1,1,3]]}
[]
[null,"Documentation Page"]
[null,"Listing","Description","Comments"]
[]
[null,"Cover Letter","Introductory letter from Records Management Division","Click to open"]
[]
[null,"General Instructions","General instructions for doing the holdings report","Click to open"]
[]
[null,"Step-by-step procedure","Specific instructions for the entering the data","Click to open"]
[]
[null,"Departments/Divisions","Double-click on division to get to specific spreadsheet","These are listed in alphabetical order"]
[null,null,"Records Manager - Pennye Neal: Phone 741-5739"]
[]
[null,"Agency Summary"]
[null,"Accounts"]
[null,"Administration"]
[null,"Administration_ISM"]
[null,"Billing_Services"]
[null,"Budget"]
[null,"Capital_Projects_Management"]
[null,"Executive"]
[null,"Finance & Administration"]
[null,"Human_Resource_Office"]
[null,"Insurance_Administration"]
[null,"Internal_Audit"]
[null,"Legal"]
[null,"Office_of_Business_and_Finance"]
[null,"OIR - Administration"]
[null,"OIR - SDS"]
[null,"OIR - Telecom"]
[null,"OIR - TSS"]
[null,"OIR/PRD"]
[null,"OIR/Quality Assurance"]
[null,"OIR-Computer Operations"]
[null,"Real_Property_Management"]
[null,"Resource Development & Support"]
[null,"OIR - PMC"]
[null,"OSTS"]
[null,"Health Planning"]
[null,"Shared Services"]
[null,"State Planning"]
[null,"ERP"]
[null,"OIG"]

{"sheet":"CoverLetter","index":1,"n_rows":0,"n_cols":0,"rows_kept":0,"cut":false,"hidden":false,"merged":[]}

{"sheet":"GeneralInstructions","index":2,"n_rows":0,"n_cols":0,"rows_kept":0,"cut":false,"hidden":false,"merged":[]}

{"sheet":"StepbyStep...","index":3,"n_rows":0,"n_cols":0,"rows_kept":0,"cut":false,"hidden":false,"merged":[]}

{"sheet":"Agency Summary","index":4,"n_rows":69,"n_cols":15,"rows_kept":69,"cut":false,"hidden":false,"merged":[[10,0,10,12],[9,1,9,7],[6,1,6,9],[4,0,4,12],[5,0,5,12],[7,0,7,12],[8,0,8,12]]}
[]
[]
[]
[" ","   "]
["DEPARTMENT OF GENERAL SERVICES"]
["RECORDS MANAGEMENT DIVISION"]
[]
["RECORDS HOLDING REPORT"]
[" FY July 1, 2011  through  June 30,  2012"]
[]
["SEE INSTRUCTIONS ON BACK"]
[]
[null,"Department Name: ",null,"Finance & Administration",null,null,null,null,"Allotment Code:",null,317]
[]
[null,"Division Name:    ",null,"All Divisions",null,null,null,null,"County:  ","Davidson"]
[]
[null,"Person Completing Form:",null,null,"Tami Jefferson",null,null,null,"Phone:    ","615-253-4052"]
[]
[null,"Paper Record(s) Holdings"]
[null,"I.    Records on Hand July 1, 2011              ",null,null,null,null," (beginning volume from previous year) ",null,null,null,{"$f":"SUM(RDS:ERP!K20)","v":11026}," Cu. Ft."]
[null,null,null,null,null,null,null,null,null," "]
[null,"II.   Records Created",null,null,null,null,null,null,null,"(+)",{"$f":"SUM(RDS:ERP!K22)","v":429},"Cu. Ft."]
[]
[null,"III.  Records Destroyed",null,null,null,null,null,null,null,"( - )",{"$f":"SUM(RDS:ERP!K24)","v":2841},"Cu. Ft."]
[]
[null,"IV.  Records Transferred:"]
[null,null,null,"Records Center                                                      ",null,null,null,null,null,"( - )",{"$f":"SUM(RDS:ERP!K27)","v":0},"Cu. Ft."]
[null,null,null,"Library & Archives                                         ",null," ",null,null,null,"( - )    ",{"$f":"SUM(RDS:ERP!K28)","v":0},"Cu. Ft."]
[null,null,null,"Other: (please specify) ______________________________",null,null,null,null,null,"( - )",{"$f":"SUM(RDS:ERP!K29)","v":0},"Cu. Ft."]
[]
[null,"V.   Records on hand June 30, 2012                                ",null,null,null,null,null,"(Line I + II – III – IV = V)",null,null,{"$f":"SUM(K20+K22-K24-K27-K28-K29)","v":8614},"Cu. Ft.",{"$f":"K31-K20","v":-2412},"Difference Between this year and last year"]
[null,null,null,null,null,null,null,null,null,null,null,null,{"$f":"M31/K20","v":-0.21875566842009794},"Percentage:",{"$f":"IF(M32>0, \"Positive\", \"Negative\")","v":"Negative"}]
[null,"Records Category/Description:",null,null,null,null,null,null,null,null,null,null,">10%",{"$f":"OR(M32>10%,M32<-10%)","v":true}]
[null,"Media:",null,null,null,"    Active  ","+"," Inactive",null,null,"    Totals"]
[]
[null,"I.      Paper   ",null," ",null,{"$f":"SUM(RDS:ERP!F36)","v":8614},null,{"$f":"SUM(RDS:ERP!H36)","v":0},null,null,{"$f":"F36+H36","v":8614},"Cu. Ft"]
[]
[null,"II     Cartridge & Magnetic Tapes  ",null,null,null,{"$f":"SUM(RDS:ERP!F38)","v":0},null,{"$f":"SUM(RDS:ERP!H38)","v":0},null,null,{"$f":"F38+H38","v":0},"Cart/Reel"]
[]
[null,"III.   CD ROM",null,null,null,{"$f":"SUM(RDS:ERP!F40)","v":264},null,{"$f":"SUM(RDS:ERP!H40)","v":0},null,null,{"$f":"F40+H40","v":264},"Disks"]
[]
[null,"IV.   Magnetic/Optical Disks",null,null,null,{"$f":"SUM(RDS:ERP!F42)","v":0},null,{"$f":"SUM(RDS:ERP!H42)","v":0},null,null,{"$f":"F42+H42","v":0},"Disks"]
[null,null," "]
[null,"V.     Microfilm",null,null,null,{"$f":"SUM(RDS:ERP!F44)","v":0},null,{"$f":"SUM(RDS:ERP!H44)","v":0},null,null,{"$f":"F44+H44","v":0},"Rolls"]
[]
[null,"VI.   Microfiche",null,null,null,{"$f":"SUM(RDS:ERP!F46)","v":0},null,{"$f":"SUM(RDS:ERP!H46)","v":0},null,null,{"$f":"F46+H46","v":0},"Sheets"]
[]
[null,"Microfilm – Number of Rolls Produced Annually:"]
[]
[null,"I. ","By Reporting Agency",null,null,null,null,null,null,null,{"$f":"SUM(RDS:ERP!K50)","v":0}]
[]
[null,"II.","By Other State Agencies",null,null,null,null,null,null,null,{"$f":"SUM(RDS:ERP!K52)","v":0}]
[]
[null,"III.","By Outside Vendors",null,null,null,null,null,null,null,{"$f":"SUM(RDS:ERP!K54)","v":0}]
[]
[null,null,null,"Total Rolls Produced",null,null,null,null,null,null,{"$f":"K50+K52+K54","v":0}]
[]
[null,"Storage Facilities"]
[null,"Does your division store records in storage facilities other than the office or State Records Center?"]
[null,null,null,null,null,null,null,null,null,null,null,"No "]
[null,"If YES, please provide the following information:"]
[]
[]
[null,null,null,"Name and Address",null,null,null,null,"Media Type",null,"Volume"]
[]
[]
[]
[]
[null,"GS-0704  (REV 08/12)",null,null,null,null,null,null,null,null,"        RDA SW05"]

{"sheet":"RDS","index":5,"n_rows":69,"n_cols":12,"rows_kept":69,"cut":false,"hidden":false,"merged":[[8,0,8,12],[9,1,9,7],[10,0,10,12],[4,0,4,12],[5,0,5,12],[6,1,6,9],[7,0,7,12]]}
[]
[]
[]
[" ","   "]
["DEPARTMENT OF GENERAL SERVICES"]
["RECORDS MANAGEMENT DIVISION"]
[]
["RECORDS HOLDING REPORT"]
[" FY July 1, 2011  through  June 30,  2012"]
[]
["SEE INSTRUCTIONS ON BACK"]
[]
[null,"Department Name: ",null,"Finance & Administration",null,null,null,null,"Allotment Code:",null,"317.06, 317.07, 317.11"]
[]
[null,"Division Name:    ",null,"Resource Development & Support",null,null,null,null,"County:  ","Davidson"]
[]
[null,"Person Completing Form:",null,null,"Francine Webster",null,null,null,"Phone:    ",6155327187]
[]
[null,"Paper Record(s) Holdings"]
[null,"I.    Records on Hand July 1, 2011               ",null,null,null,null," (beginning volume from previous year) ",null,null,null,265," Cu. Ft."]
[null,null,null,null,null,null,null,null,null," "]
[null,"II.   Records Created",null,null,null,null,null,null,null,"(+)",null,"Cu. Ft."]
[]
[null,"III.  Records Destroyed",null,null,null,null,null,null,null,"( - )",138,"Cu. Ft."]
[]
[null,"IV.  Records Transferred:"]
[null,null,null,"Records Center                                                      ",null,null,null,null,null,"( - )",null,"Cu. Ft."]
[null,null,null,"Library & Archives                                         ",null," ",null,null,null,"( - )    "]
[null,null,null,"Other: (please specify) ______________________________",null,null,null,null,null,"( - )",null,"Cu. Ft."]
[]
[null,"V.   Records on hand June 30, 2012                                  ",null,null,null,null,null,"(Line I + II – III – IV = V)",null,null,{"$f":"SUM(K20+K22-K24-K27-K28-K29)","v":127},"Cu. Ft."]
[]
[null,"Records Category/Description:"]
[null,"Media:",null,null,null,"    Active  ","+"," Inactive",null,null,"    Totals"]
[]
[null,"I.      Paper   ",null," ",null,{"$f":"K31-H36","v":127},null,null,null,null,{"$f":"K31","v":127},"Cu. Ft"]
[]
[null,"II     Cartridge & Magnetic Tapes  ",null,null,null,null,null,null,null,null,{"$f":"F38+H38","v":0},"Cart/Reel"]
[]
[null,"III.   CD ROM",null,null,null,null,null,null,null,null,{"$f":"F40+H40","v":0},"Disks"]
[]
[null,"IV.   Magnetic/Optical Disks",null,null,null,null,null,null,null,null,{"$f":"F42+H42","v":0},"Disks"]
[null,null," "]
[null,"V.     Microfilm",null,null,null,null,null,null,null,null,{"$f":"F44+H44","v":0},"Rolls"]
[]
[null,"VI.   Microfiche",null,null,null,null,null,null,null,null,{"$f":"F46+H46","v":0},"Sheets"]
[]
[null,"Microfilm – Number of Rolls Produced Annually:"]
[]
[null,"I. ","By Reporting Agency"]
[]
[null,"II.","By Other State Agencies"]
[]
[null,"III.","By Outside Vendors"]
[]
[null,null,null,"Total Rolls Produced",null,null,null,null,null,null,{"$f":"K50+K52+K54","v":0}]
[]
[null,"Storage Facilities"]
[null,"Does your division store records in storage facilities other than the office or State Records Center?"]
[null,null,null,null,null,null,null,null,null,"Yes   ","X","No "]
[null,"If YES, please provide the following information:"]
[]
[]
[null,null,null,"Name and Address",null,null,null,null,"Media Type",null,"Volume"]
[]
[]
[]
[]
[null,"GS-0704  (REV 08/12)",null,null,null,null,null,null,null,null,"        RDA SW05"]

{"sheet":"OIR-TELECOM","index":6,"n_rows":69,"n_cols":12,"rows_kept":69,"cut":false,"hidden":false,"merged":[[8,0,8,12],[9,1,9,7],[10,0,10,12],[4,0,4,12],[5,0,5,12],[6,1,6,9],[7,0,7,12]]}
[]
[]
[]
[" ","   "]
["DEPARTMENT OF GENERAL SERVICES"]
["RECORDS MANAGEMENT DIVISION"]
[]
["RECORDS HOLDING REPORT"]
[" FY July 1, 2011  through  June 30,  2012"]
[]
["SEE INSTRUCTIONS ON BACK"]
[]
[null,"Department Name: ",null,"Finance & Administration",null,null,null,null,"Allotment Code:",null,317.02999999999997]
[]
[null,"Division Name:    ",null,"OIR - Telecom",null,null,null,null,"County:  ","Davidson"]
[]
[null,"Person Completing Form:",null,null,"Pam Walker",null,null,null,"Phone:    ",6152535049]
[]
[null,"Paper Record(s) Holdings"]
[null,"I.    Records on Hand July 1, 2011               ",null,null,null,null," (beginning volume from previous year) ",null,null,null,54," Cu. Ft."]
[null,null,null,null,null,null,null,null,null," "]
[null,"II.   Records Created",null,null,null,null,null,null,null,"(+)",null,"Cu. Ft."]
[]
[null,"III.  Records Destroyed",null,null,null,null,null,null,null,"( - )",null,"Cu. Ft."]
[]
[null,"IV.  Records Transferred:"]
[null,null,null,"Records Center                                                      ",null,null,null,null,null,"( - )",null,"Cu. Ft."]
[null,null,null,"Library & Archives                                         ",null," ",null,null,null,"( - )    ",null,"Cu. Ft."]
[null,null,null,"Other: (please specify) ______________________________",null,null,null,null,null,"( - )",null,"Cu. Ft."]
[]
[null,"V.   Records on hand June 30, 2012                                ",null,null,null,null,null,"(Line I + II – III – IV = V)",null,null,{"$f":"SUM(K20+K22-K24-K27-K28-K29)","v":54},"Cu. Ft."]
[]
[null,"Records Category/Description:"]
[null,"Media:",null,null,null,"    Active  ","+"," Inactive",null,"=","    Totals"]
[]
[null,"I.      Paper   ",null," ",null,{"$f":"K31-H36","v":54},null,null,null,null,{"$f":"K31","v":54},"Cu. Ft"]
[]
[null,"II     Cartridge & Magnetic Tapes  ",null,null,null,null,null,null,null,null,{"$f":"F38+H38","v":0},"Cart/Reel"]
[]
[null,"III.   CD ROM",null,null,null,null,null,null,null,null,{"$f":"F40+H40","v":0},"Disks"]
[]
[null,"IV.   Magnetic/Optical Disks",null,null,null,null,null,null,null,null,{"$f":"F42+H42","v":0},"Disks"]
[null,null," "]
[null,"V.     Microfilm",null,null,null,null,null,null,null,null,{"$f":"F44+H44","v":0},"Rolls"]
[]
[null,"VI.   Microfiche",null,null,null,null,null,null,null,null,{"$f":"F46+H46","v":0},"Sheets"]
[]
[null,"Microfilm – Number of Rolls Produced Annually:"]
[]
[null,"I. ","By Reporting Agency"]
[]
[null,"II.","By Other State Agencies"]
[]
[null,"III.","By Outside Vendors"]
[]
[null,null,null,"Total Rolls Produced",null,null,null,null,null,null,{"$f":"K50+K52+K54","v":0}]
[]
[null,"Storage Facilities"]
[null,"Does your division store records in storage facilities other than the office or State Records Center?"]
[null,null,null,null,null,null,null,null,null,"Yes   ",null,"No "]
[null,"If YES, please provide the following information:"]
[]
[]
[null,null,null,"Name and Address",null,null,null,null,"Media Type",null,"Volume"]
[]
[]
[]
[]
[null,"GS-0704  (REV 08/12)",null,null,null,null,null,null,null,null,"        RDA SW05"]

{"sheet":"OIR-TSS","index":7,"n_rows":69,"n_cols":12,"rows_kept":69,"cut":false,"hidden":false,"merged":[[8,0,8,12],[9,1,9,7],[10,0,10,12],[4,0,4,12],[5,0,5,12],[6,1,6,9],[7,0,7,12]]}
[]
[]
[]
[" ","   "]
["DEPARTMENT OF GENERAL SERVICES"]
["RECORDS MANAGEMENT DIVISION"]
[]
["RECORDS HOLDING REPORT"]
[" FY July 1, 2011  through  June 30,  2012"]
[]
["SEE INSTRUCTIONS ON BACK"]
[]
[null,"Department Name: ",null,"Finance & Administration",null,null,null,null,"Allotment Code:",null,317.02999999999997]
[]
[null,"Division Name:    ",null,"OIR - MTS",null,null,null,null,"County:  ","Davidson"]
[]
[null,"Person Completing Form:",null,null,"Pam Walker",null,null,null,"Phone:    ",6152535049]
[]
[null,"Paper Record(s) Holdings"]
[null,"I.    Records on Hand July 1, 2011             ",null,null,null,null," (beginning volume from previous year) ",null,null,null,450," Cu. Ft."]
[null,null,null,null,null,null,null,null,null," "]
[null,"II.   Records Created",null,null,null,null,null,null,null,"(+)",null,"Cu. Ft."]
[]
[null,"III.  Records Destroyed",null,null,null,null,null,null,null,"( - )",null,"Cu. Ft."]
[]
[null,"IV.  Records Transferred:"]
[null,null,null,"Records Center                                                      ",null,null,null,null,null,"( - )",null,"Cu. Ft."]
[null,null,null,"Library & Archives                                         ",null," ",null,null,null,"( - )    ",null,"Cu. Ft."]
[null,null,null,"Other: (please specify) ______________________________",null,null,null,null,null,"( - )",null,"Cu. Ft."]
[]
[null,"V.   Records on hand June 30, 2012                                  ",null,null,null,null,null,"(Line I + II – III – IV = V)",null,null,{"$f":"SUM(K20+K22-K24-K27-K28-K29)","v":450},"Cu. Ft."]
[]
[null,"Records Category/Description:"]
[null,"Media:",null,null,null,"    Active  ","+"," Inactive",null,"=","    Totals"]
[]
[null,"I.      Paper   ",null," ",null,{"$f":"K31-H36","v":450},null,null,null,null,{"$f":"K31","v":450},"Cu. Ft"]
[]
[null,"II     Cartridge & Magnetic Tapes  ",null,null,null,null,null,null,null,null,{"$f":"F38+H38","v":0},"Cart/Reel"]
[]
[null,"III.   CD ROM",null,null,null,null,null,null,null,null,{"$f":"F40+H40","v":0},"Disks"]
[]
[null,"IV.   Magnetic/Optical Disks",null,null,null,null,null,null,null,null,{"$f":"F42+H42","v":0},"Disks"]
[null,null," "]
[null,"V.     Microfilm",null,null,null,null,null,null,null,null,{"$f":"F44+H44","v":0},"Rolls"]
[]
[null,"VI.   Microfiche",null,null,null,null,null,null,null,null,{"$f":"F46+H46","v":0},"Sheets"]
[]
[null,"Microfilm – Number of Rolls Produced Annually:"]
[]
[null,"I. ","By Reporting Agency"]
[]
[null,"II.","By Other State Agencies"]
[]
[null,"III.","By Outside Vendors"]
[]
[null,null,null,"Total Rolls Produced",null,null,null,null,null,null,{"$f":"K50+K52+K54","v":0}]
[]
[null,"Storage Facilities"]
[null,"Does your division store records in storage facilities other than the office or State Records Center?"]
[null,null,null,null,null,null,null,null,null,"Yes   ",null,"No "]
[null,"If YES, please provide the following information:"]
[]
[]
[null,null,null,"Name and Address",null,null,null,null,"Media Type",null,"Volume"]
[]
[]
[]
[]
[null,"GS-0704  (REV 08/12)",null,null,null,null,null,null,null,null,"        RDA SW05"]

{"sheet":"OIR-SDS","index":8,"n_rows":69,"n_cols":12,"rows_kept":69,"cut":false,"hidden":false,"merged":[[8,0,8,12],[9,1,9,7],[10,0,10,12],[4,0,4,12],[5,0,5,12],[6,1,6,9],[7,0,7,12]]}
[]
[]
[]
[" ","   "]
["DEPARTMENT OF GENERAL SERVICES"]
["RECORDS MANAGEMENT DIVISION"]
[]
["RECORDS HOLDING REPORT"]
[" FY July 1, 2011  through  June 30,  2012"]
[]
["SEE INSTRUCTIONS ON BACK"]
[]
[null,"Department Name: ",null,"Finance & Administration",null,null,null,null,"Allotment Code:",null,317.02999999999997]
[]
[null,"Division Name:    ",null,"OIR - SDS",null,null,null,null,"County:  ","Davidson"]
[]
[null,"Person Completing Form:",null,null,"Jeanne Smith",null,null,null,"Phone:    ",6155323486]
[]
[null,"Paper Record(s) Holdings"]
[null,"I.    Records on Hand July 1, 2011               ",null,null,null,null," (beginning volume from previous year) ",null,null,null,2101," Cu. Ft."]
[null,null,null,null,null,null,null,null,null," "]
[null,"II.   Records Created",null,null,null,null,null,null,null,"(+)",1,"Cu. Ft."]
[]
[null,"III.  Records Destroyed",null,null,null,null,null,null,null,"( - )",2000,"Cu. Ft."]
[]
[null,"IV.  Records Transferred:"]
[null,null,null,"Records Center                                                      ",null,null,null,null,null,"( - )",null,"Cu. Ft."]
[null,null,null,"Library & Archives                                         ",null," ",null,null,null,"( - )    ",null,"Cu. Ft."]
[null,null,null,"Other: (please specify) ______________________________",null,null,null,null,null,"( - )",null,"Cu. Ft."]
[]
[null,"V.   Records on hand June 30, 2012                                ",null,null,null,null,null,"(Line I + II – III – IV = V)",null,null,{"$f":"SUM(K20+K22-K24-K27-K28-K29)","v":102},"Cu. Ft."]
[]
[null,"Records Category/Description:"]
[null,"Media:",null,null,null,"    Active  ","+"," Inactive",null,"=","    Totals"]
[]
[null,"I.      Paper   ",null," ",null,{"$f":"K31-H36","v":102},null,null,null,null,{"$f":"K31","v":102},"Cu. Ft"]
[]
[null,"II     Cartridge & Magnetic Tapes  ",null,null,null,null,null,null,null,null,{"$f":"F38+H38","v":0},"Cart/Reel"]
[]
[null,"III.   CD ROM",null,null,null,null,null,null,null,null,{"$f":"F40+H40","v":0},"Disks"]
[]
[null,"IV.   Magnetic/Optical Disks",null,null,null,null,null,null,null,null,{"$f":"F42+H42","v":0},"Disks"]
[null,null," "]
[null,"V.     Microfilm",null,null,null,null,null,null,null,null,{"$f":"F44+H44","v":0},"Rolls"]
[]
[null,"VI.   Microfiche",null,null,null,null,null,null,null,null,{"$f":"F46+H46","v":0},"Sheets"]
[]
[null,"Microfilm – Number of Rolls Produced Annually:"]
[]
[null,"I. ","By Reporting Agency"]
[]
[null,"II.","By Other State Agencies"]
[]
[null,"III.","By Outside Vendors"]
[]
[null,null,null,"Total Rolls Produced",null,null,null,null,null,null,{"$f":"K50+K52+K54","v":0}]
[]
[null,"Storage Facilities"]
[null,"Does your division store records in storage facilities other than the office or State Records Center?"]
[null,null,null,null,null,null,null,null,null,"Yes   ","X","No "]
[null,"If YES, please provide the following information:"]
[]
[]
[null,null,null,"Name and Address",null,null,null,null,"Media Type",null,"Volume"]
[]
[]
[]
[]
[null,"GS-0704  (REV 08/12)",null,null,null,null,null,null,null,null,"        RDA SW05"]

{"sheet":"OIR-OPER","index":9,"n_rows":69,"n_cols":12,"rows_kept":69,"cut":false,"hidden":false,"merged":[[8,0,8,12],[9,1,9,7],[10,0,10,12],[4,0,4,12],[5,0,5,12],[6,1,6,9],[7,0,7,12]]}
[]
[]
[]
[" ","   "]
["DEPARTMENT OF GENERAL SERVICES"]
["RECORDS MANAGEMENT DIVISION"]
[]
["RECORDS HOLDING REPORT"]
[" FY July 1, 2011  through  June 30,  2012"]
[]
["SEE INSTRUCTIONS ON BACK"]
[]
[null,"Department Name: ______________________________________________ ",null,"Department of Finance and Administration",null,null,null,null,"Allotment Code:",null,317.02999999999997]
[]
[null,"Division Name:      ______________________________________________",null,"OIR-Computer Operations",null,null,null,null,"County:  ","Davidson "]
[]
[null,"Person Completing Form: ___________________________________  ",null,null,"Sarah Monk",null,null,null,"Phone:    ",6157413700]
[]
[null,"Paper Record(s) Holdings"]
[null,"I.    Records on Hand July 1, 2011              ",null,null,null,null," (beginning volume from previous year) ",null,null,null,118," Cu. Ft."]
[null,null,null,null,null,null,null,null,null," "]
[null,"II.   Records Created",null,null,null,null,null,null,null,"(+)",null,"Cu. Ft."]
[]
[null,"III.  Records Destroyed",null,null,null,null,null,null,null,"( - )",null,"Cu. Ft."]
[]
[null,"IV.  Records Transferred:"]
[null,null,null,"Records Center                                                      ",null,null,null,null,null,"( - )",null,"Cu. Ft."]
[null,null,null,"Library & Archives                                         ",null," ",null,null,null,"( - )    ",null,"Cu. Ft."]
[null,null,null,"Other: (please specify) ______________________________",null,null,null,null,null,"( - )",null,"Cu. Ft."]
[]
[null,"V.   Records on hand June 30, 2012                                  ",null,null,null,null,null,"(Line I + II – III – IV = V)",null,null,{"$f":"SUM(K20+K22-K24-K27-K28-K29)","v":118},"Cu. Ft."]
[]
[null,"Records Category/Description:"]
[null,"Media:",null,null,null,"    Active  ","+"," Inactive",null,"=","    Totals"]
[]
[null,"I.      Paper   ",null," ",null,{"$f":"K31-H36","v":118},null,null,null,null,{"$f":"K31","v":118},"Cu. Ft"]
[]
[null,"II     Cartridge & Magnetic Tapes  ",null,null,null,null,null,null,null,null,{"$f":"F38+H38","v":0},"Cart/Reel"]
[]
[null,"III.   CD ROM",null,null,null,null,null,null,null,null,{"$f":"F40+H40","v":0},"Disks"]
[]
[null,"IV.   Magnetic/Optical Disks",null,null,null,null,null,null,null,null,{"$f":"F42+H42","v":0},"Disks"]
[null,null," "]
[null,"V.     Microfilm",null,null,null,null,null,null,null,null,{"$f":"F44+H44","v":0},"Rolls"]
[]
[null,"VI.   Microfiche",null,null,null,null,null,null,null,null,{"$f":"F46+H46","v":0},"Sheets"]
[]
[null,"Microfilm – Number of Rolls Produced Annually:"]
[]
[null,"I. ","By Reporting Agency"]
[]
[null,"II.","By Other State Agencies"]
[]
[null,"III.","By Outside Vendors"]
[]
[null,null,null,"Total Rolls Produced",null,null,null,null,null,null,{"$f":"K50+K52+K54","v":0}]
[]
[null,"Storage Facilities"]
[null,"Does your division store records in storage facilities other than the office or State Records Center?"]
[null,null,null,null,null,null,null,null,null,"Yes   ",null,"No "]
[null,"If YES, please provide the following information:"]
[]
[]
[null,null,null,"Name and Address",null,null,null,null,"Media Type",null,"Volume"]
[]
[]
[]
[]
[null,"GS-0704  (REV 08/12)",null,null,null,null,null,null,null,null,"        RDA SW05"]

{"sheet":"OIR-QA","index":10,"n_rows":69,"n_cols":12,"rows_kept":69,"cut":false,"hidden":false,"merged":[[8,0,8,12],[9,1,9,7],[10,0,10,12],[4,0,4,12],[5,0,5,12],[6,1,6,9],[7,0,7,12]]}
[]
[]
[]
[" ","   "]
["DEPARTMENT OF GENERAL SERVICES"]
["RECORDS MANAGEMENT DIVISION"]
[]
["RECORDS HOLDING REPORT"]
[" FY July 1, 2011 through  June 30,  2012"]
[]
["SEE INSTRUCTIONS ON BACK"]
[]
[null,"Department Name: ______________________________________________ ",null,"Finance & Administration",null,null,null,null,"Allotment Code:",null,317.02999999999997]
[]
[null,"Division Name:      ______________________________________________",null,"OIR/Quality Assurance",null,null,null,null,"County:  ","Davidson"]
[]
[null,"Person Completing Form: ___________________________________  ",null,null,"Margaret Latch",null,null,null,"Phone:    ",6152537842]
[]
[null,"Paper Record(s) Holdings"]
[null,"I.    Records on Hand July 1, 2011               ",null,null,null,null," (beginning volume from previous year) ",null,null,null,87," Cu. Ft."]
[null,null,null,null,null,null,null,null,null," "]
[null,"II.   Records Created",null,null,null,null,null,null,null,"(+)",null,"Cu. Ft."]
[]
[null,"III.  Records Destroyed",null,null,null,null,null,null,null,"( - )",null,"Cu. Ft."]
[]
[null,"IV.  Records Transferred:"]
[null,null,null,"Records Center                                                      ",null,null,null,null,null,"( - )",null,"Cu. Ft."]
[null,null,null,"Library & Archives                                         ",null," ",null,null,null,"( - )    ",null,"Cu. Ft."]
[null,null,null,"Other: (please specify) ______________________________",null,null,null,null,null,"( - )",null,"Cu. Ft."]
[]
[null,"V.   Records on hand June 30, 2012                                  ",null,null,null,null,null,"(Line I + II – III – IV = V)",null,null,{"$f":"SUM(K20+K22-K24-K27-K28-K29)","v":87},"Cu. Ft."]
[]
[null,"Records Category/Description:"]
[null,"Media:",null,null,null,"    Active  ","+"," Inactive",null,"=","    Totals"]
[]
[null,"I.      Paper   ",null," ",null,{"$f":"K31-H36","v":87},null,null,null,null,{"$f":"K31","v":87},"Cu. Ft"]
[]
[null,"II     Cartridge & Magnetic Tapes  ",null,null,null,null,null,null,null,null,{"$f":"F38+H38","v":0},"Cart/Reel"]
[]
[null,"III.   CD ROM",null,null,null,null,null,null,null,null,{"$f":"F40+H40","v":0},"Disks"]
[]
[null,"IV.   Magnetic/Optical Disks",null,null,null,null,null,null,null,null,{"$f":"F42+H42","v":0},"Disks"]
[null,null," "]
[null,"V.     Microfilm",null,null,null,null,null,null,null,null,{"$f":"F44+H44","v":0},"Rolls"]
[]
[null,"VI.   Microfiche",null,null,null,null,null,null,null,null,{"$f":"F46+H46","v":0},"Sheets"]
[]
[null,"Microfilm – Number of Rolls Produced Annually:"]
[]
[null,"I. ","By Reporting Agency"]
[]
[null,"II.","By Other State Agencies"]
[]
[null,"III.","By Outside Vendors"]
[]
[null,null,null,"Total Rolls Produced",null,null,null,null,null,null,{"$f":"K50+K52+K54","v":0}]
[]
[null,"Storage Facilities"]
[null,"Does your division store records in storage facilities other than the office or State Records Center?"]
[null,null,null,null,null,null,null,null,null,"Yes   ",null,"No "]
[null,"If YES, please provide the following information:"]
[]
[]
[null,null,null,"Name and Address",null,null,null,null,"Media Type",null,"Volume"]
[]
[]
[]
[]
[null,"GS-0704  (REV 08/12)",null,null,null,null,null,null,null,null,"        RDA SW05"]

{"sheet":"OIR-PRD","index":11,"n_rows":69,"n_cols":12,"rows_kept":69,"cut":false,"hidden":false,"merged":[[8,0,8,12],[9,1,9,7],[10,0,10,12],[4,0,4,12],[5,0,5,12],[6,1,6,9],[7,0,7,12]]}
[]
[]
[]
[" ","   "]
["DEPARTMENT OF GENERAL SERVICES"]
["RECORDS MANAGEMENT DIVISION"]
[]
["RECORDS HOLDING REPORT"]
[" FY July 1, 2011 through  June 30,  2012"]
[]
["SEE INSTRUCTIONS ON BACK"]
[]
[null,"Department Name: ______________________________________________ ",null,"Finance & Administration",null,null,null,null,"Allotment Code:",null,317.02999999999997]
[]
[null,"Division Name:      ______________________________________________",null,"OIR/PRD",null,null,null,null,"County:  ","Davidson"]
[]
[null,"Person Completing Form: ___________________________________  ",null,null,"Margaret Latch",null,null,null,"Phone:    ",6152537842]
[]
[null,"Paper Record(s) Holdings"]
[null,"I.    Records on Hand July 1, 2011              ",null,null,null,null," (beginning volume from previous year) ",null,null,null,150," Cu. Ft."]
[null,null,null,null,null,null,null,null,null," "]
[null,"II.   Records Created",null,null,null,null,null,null,null,"(+)",null,"Cu. Ft."]
[]
[null,"III.  Records Destroyed",null,null,null,null,null,null,null,"( - )",null,"Cu. Ft."]
[]
[null,"IV.  Records Transferred:"]
[null,null,null,"Records Center                                                      ",null,null,null,null,null,"( - )",null,"Cu. Ft."]
[null,null,null,"Library & Archives                                         ",null," ",null,null,null,"( - )    ",null,"Cu. Ft."]
[null,null,null,"Other: (please specify) ______________________________",null,null,null,null,null,"( - )",null,"Cu. Ft."]
[]
[null,"V.   Records on hand June 30, 2012                                  ",null,null,null,null,null,"(Line I + II – III – IV = V)",null,null,{"$f":"SUM(K20+K22-K24-K27-K28-K29)","v":150},"Cu. Ft."]
[]
[null,"Records Category/Description:"]
[null,"Media:",null,null,null,"    Active  ","+"," Inactive",null,"=","    Totals"]
[]
[null,"I.      Paper   ",null," ",null,{"$f":"K31-H36","v":150},null,null,null,null,{"$f":"K31","v":150},"Cu. Ft"]
[]
[null,"II     Cartridge & Magnetic Tapes  ",null,null,null,null,null,null,null,null,{"$f":"F38+H38","v":0},"Cart/Reel"]
[]
[null,"III.   CD ROM",null,null,null,null,null,null,null,null,{"$f":"F40+H40","v":0},"Disks"]
[]
[null,"IV.   Magnetic/Optical Disks",null,null,null,null,null,null,null,null,{"$f":"F42+H42","v":0},"Disks"]
[null,null," "]
[null,"V.     Microfilm",null,null,null,null,null,null,null,null,{"$f":"F44+H44","v":0},"Rolls"]
[]
[null,"VI.   Microfiche",null,null,null,null,null,null,null,null,{"$f":"F46+H46","v":0},"Sheets"]
[]
[null,"Microfilm – Number of Rolls Produced Annually:"]
[]
[null,"I. ","By Reporting Agency"]
[]
[null,"II.","By Other State Agencies"]
[]
[null,"III.","By Outside Vendors"]
[]
[null,null,null,"Total Rolls Produced",null,null,null,null,null,null,{"$f":"K50+K52+K54","v":0}]
[]
[null,"Storage Facilities"]
[null,"Does your division store records in storage facilities other than the office or State Records Center?"]
[null,null,null,null,null,null,null,null,null,"Yes   ",null,"No "]
[null,"If YES, please provide the following information:"]
[]
[]
[null,null,null,"Name and Address",null,null,null,null,"Media Type",null,"Volume"]
[]
[]
[]
[]
[null,"GS-0704  (REV 08/12)",null,null,null,null,null,null,null,null,"        RDA SW05"]

{"sheet":"OIR-DBA","index":12,"n_rows":69,"n_cols":12,"rows_kept":69,"cut":false,"hidden":false,"merged":[[8,0,8,12],[9,1,9,7],[10,0,10,12],[4,0,4,12],[5,0,5,12],[6,1,6,9],[7,0,7,12]]}
[]
[]
[]
[" ","   "]
["DEPARTMENT OF GENERAL SERVICES"]
["RECORDS MANAGEMENT DIVISION"]
[]
["RECORDS HOLDING REPORT"]
[" FY July 1, 2011 through  June 30,  2012"]
[]
["SEE INSTRUCTIONS ON BACK"]
[]
[null,"Department Name: ______________________________________________ ",null,"Finance & Administration",null,null,null,null,"Allotment Code:",null,317.02999999999997]
[]
[null,"Division Name:      ______________________________________________",null,"OIR Soultions Delivery & Support",null,null,null,null,"County:  ","Davidson"]
[]
[null,"Person Completing Form: ___________________________________  ",null,null,"Margie Latch",null,null,null,"Phone:    ",6152537842]
[]
[null,"Paper Record(s) Holdings"]
[null,"I.    Records on Hand July 1, 2011              ",null,null,null,null," (beginning volume from previous year) ",null,null,null,13," Cu. Ft."]
[null,null,null,null,null,null,null,null,null," "]
[null,"II.   Records Created",null,null,null,null,null,null,null,"(+)",null,"Cu. Ft."]
[]
[null,"III.  Records Destroyed",null,null,null,null,null,null,null,"( - )",null,"Cu. Ft."]
[]
[null,"IV.  Records Transferred:"]
[null,null,null,"Records Center                                                      ",null,null,null,null,null,"( - )",null,"Cu. Ft."]
[null,null,null,"Library & Archives                                         ",null," ",null,null,null,"( - )    ",null,"Cu. Ft."]
[null,null,null,"Other: (please specify) ______________________________",null,null,null,null,null,"( - )",null,"Cu. Ft."]
[]
[null,"V.   Records on hand June 30, 2012                                  ",null,null,null,null,null,"(Line I + II – III – IV = V)",null,null,{"$f":"SUM(K20+K22-K24-K27-K28-K29)","v":13},"Cu. Ft."]
[]
[null,"Records Category/Description:"]
[null,"Media:",null,null,null,"    Active  ","+"," Inactive",null,"=","    Totals"]
[]
[null,"I.      Paper   ",null," ",null,{"$f":"K31-H36","v":13},null,null,null,null,{"$f":"K31","v":13},"Cu. Ft"]
[]
[null,"II     Cartridge & Magnetic Tapes  ",null,null,null,null,null,null,null,null,{"$f":"F38+H38","v":0},"Cart/Reel"]
[]
[null,"III.   CD ROM",null,null,null,null,null,null,null,null,{"$f":"F40+H40","v":0},"Disks"]
[]
[null,"IV.   Magnetic/Optical Disks",null,null,null,null,null,null,null,null,{"$f":"F42+H42","v":0},"Disks"]
[null,null," "]
[null,"V.     Microfilm",null,null,null,null,null,null,null,null,{"$f":"F44+H44","v":0},"Rolls"]
[]
[null,"VI.   Microfiche",null,null,null,null,null,null,null,null,{"$f":"F46+H46","v":0},"Sheets"]
[]
[null,"Microfilm – Number of Rolls Produced Annually:"]
[]
[null,"I. ","By Reporting Agency"]
[]
[null,"II.","By Other State Agencies"]
[]
[null,"III.","By Outside Vendors"]
[]
[null,null,null,"Total Rolls Produced",null,null,null,null,null,null,{"$f":"K50+K52+K54","v":0}]
[]
[null,"Storage Facilities"]
[null,"Does your division store records in storage facilities other than the office or State Records Center?"]
[null,null,null,null,null,null,null,null,null,"Yes   ",null,"No "]
[null,"If YES, please provide the following information:"]
[]
[]
[null,null,null,"Name and Address",null,null,null,null,"Media Type",null,"Volume"]
[]
[]
[]
[]
[null,"GS-0704  (REV 08/12)",null,null,null,null,null,null,null,null,"        RDA SW05"]

{"sheet":"OIR-CS","index":13,"n_rows":69,"n_cols":12,"rows_kept":69,"cut":false,"hidden":false,"merged":[[8,0,8,12],[9,1,9,7],[10,0,10,12],[4,0,4,12],[5,0,5,12],[6,1,6,9],[7,0,7,12]]}
[]
[]
[]
[" ","   "]
["DEPARTMENT OF GENERAL SERVICES"]
["RECORDS MANAGEMENT DIVISION"]
[]
["RECORDS HOLDING REPORT"]
[" FY July 1, 2011 through  June 30,  2012"]
[]
["SEE INSTRUCTIONS ON BACK"]
[]
[null,"Department Name: ",null,"Finance & Administration",null,null,null,null,"Allotment Code:",null,317.02999999999997]
[]
[null,"Division Name:    ",null,"OIR - CS",null,null,null,null,"County:  ","Davidson"]
[]
[null,"Person Completing Form:",null,null,"Margie Latch",null,null,null,"Phone:    ","615-253-7842"]
[]
[null,"Paper Record(s) Holdings"]
[null,"I.    Records on Hand July 1, 2011               ",null,null,null,null," (beginning volume from previous year) ",null,null,null,67," Cu. Ft."]
[null,null,null,null,null,null,null,null,null," "]
[null,"II.   Records Created",null,null,null,null,null,null,null,"(+)",null,"Cu. Ft."]
[]
[null,"III.  Records Destroyed",null,null,null,null,null,null,null,"( - )",null,"Cu. Ft."]
[]
[null,"IV.  Records Transferred:"]
[null,null,null,"Records Center                                                      ",null,null,null,null,null,"( - )",null,"Cu. Ft."]
[null,null,null,"Library & Archives                                         ",null," ",null,null,null,"( - )    ",null,"Cu. Ft."]
[null,null,null,"Other: (please specify) ______________________________",null,null,null,null,null,"( - )",null,"Cu. Ft."]
[]
[null,"V.   Records on hand June 30, 2012                                  ",null,null,null,null,null,"(Line I + II – III – IV = V)",null,null,{"$f":"SUM(K20+K22-K24-K27-K28-K29)","v":67},"Cu. Ft."]
[]
[null,"Records Category/Description:"]
[null,"Media:",null,null,null,"    Active  ","+"," Inactive",null,"=","    Totals"]
[]
[null,"I.      Paper   ",null," ",null,{"$f":"K31-H36","v":67},null,null,null,null,{"$f":"K31","v":67},"Cu. Ft"]
[]
[null,"II     Cartridge & Magnetic Tapes  ",null,null,null,null,null,null,null,null,{"$f":"F38+H38","v":0},"Cart/Reel"]
[]
[null,"III.   CD ROM",null,null,null,null,null,null,null,null,{"$f":"F40+H40","v":0},"Disks"]
[]
[null,"IV.   Magnetic/Optical Disks",null,null,null,null,null,null,null,null,{"$f":"F42+H42","v":0},"Disks"]
[null,null," "]
[null,"V.     Microfilm",null,null,null,null,null,null,null,null,{"$f":"F44+H44","v":0},"Rolls"]
[]
[null,"VI.   Microfiche",null,null,null,null,null,null,null,null,{"$f":"F46+H46","v":0},"Sheets"]
[]
[null,"Microfilm – Number of Rolls Produced Annually:"]
[]
[null,"I. ","By Reporting Agency"]
[]
[null,"II.","By Other State Agencies"]
[]
[null,"III.","By Outside Vendors"]
[]
[null,null,null,"Total Rolls Produced",null,null,null,null,null,null,{"$f":"K50+K52+K54","v":0}]
[]
[null,"Storage Facilities"]
[null,"Does your division store records in storage facilities other than the office or State Records Center?"]
[null,null,null,null,null,null,null,null,null,"Yes   ",null,"No "]
[null,"If YES, please provide the following information:"]
[]
[]
[null,null,null,"Name and Address",null,null,null,null,"Media Type",null,"Volume"]
[]
[]
[]
[]
[null,"GS-0704  (REV 08/12)",null,null,null,null,null,null,null,null,"        RDA SW05"]

{"sheet":"OIR-Admin","index":14,"n_rows":69,"n_cols":12,"rows_kept":69,"cut":false,"hidden":false,"merged":[[8,0,8,12],[9,1,9,7],[10,0,10,12],[4,0,4,12],[5,0,5,12],[6,1,6,9],[7,0,7,12]]}
[]
[]
[]
[" ","   "]
["DEPARTMENT OF GENERAL SERVICES"]
["RECORDS MANAGEMENT DIVISION"]
[]
["RECORDS HOLDING REPORT"]
[" FY July 1, 2011 through  June 30,  2012"]
[]
["SEE INSTRUCTIONS ON BACK"]
[]
[null,"Department Name: ",null,"Finance & Administration",null,null,null,null,"Allotment Code:",null,317.02999999999997]
[]
[null,"Division Name:    ",null,"OIR - Administration",null,null,null,null,"County:  ","Davidson"]
[]
[null,"Person Completing Form:",null,null,"Sarah Monk",null,null,null,"Phone:    ",6157413700]
[]
[null,"Paper Record(s) Holdings"]
[null,"I.    Records on Hand July 1, 2011               ",null,null,null,null," (beginning volume from previous year) ",null,null,null,8," Cu. Ft."]
[null,null,null,null,null,null,null,null,null," "]
[null,"II.   Records Created",null,null,null,null,null,null,null,"(+)",null,"Cu. Ft."]
[]
[null,"III.  Records Destroyed",null,null,null,null,null,null,null,"( - )",null,"Cu. Ft."]
[]
[null,"IV.  Records Transferred:"]
[null,null,null,"Records Center                                                      ",null,null,null,null,null,"( - )",null,"Cu. Ft."]
[null,null,null,"Library & Archives                                         ",null," ",null,null,null,"( - )    ",null,"Cu. Ft."]
[null,null,null,"Other: (please specify) ______________________________",null,null,null,null,null,"( - )",null,"Cu. Ft."]
[]
[null,"V.   Records on hand June 30, 2012                                  ",null,null,null,null,null,"(Line I + II – III – IV = V)",null,null,{"$f":"SUM(K20+K22-K24-K27-K28-K29)","v":8},"Cu. Ft."]
[]
[null,"Records Category/Description:"]
[null,"Media:",null,null,null,"    Active  ","+"," Inactive",null,"=","    Totals"]
[]
[null,"I.      Paper   ",null," ",null,{"$f":"K31-H36","v":8},null,null,null,null,{"$f":"K31","v":8},"Cu. Ft"]
[]
[null,"II     Cartridge & Magnetic Tapes  ",null,null,null,null,null,null,null,null,{"$f":"F38+H38","v":0},"Cart/Reel"]
[]
[null,"III.   CD ROM",null,null,null,null,null,null,null,null,{"$f":"F40+H40","v":0},"Disks"]
[]
[null,"IV.   Magnetic/Optical Disks",null,null,null,null,null,null,null,null,{"$f":"F42+H42","v":0},"Disks"]
[null,null," "]
[null,"V.     Microfilm",null,null,null,null,null,null,null,null,{"$f":"F44+H44","v":0},"Rolls"]
[]
[null,"VI.   Microfiche",null,null,null,null,null,null,null,null,{"$f":"F46+H46","v":0},"Sheets"]
[]
[null,"Microfilm – Number of Rolls Produced Annually:"]
[]
[null,"I. ","By Reporting Agency"]
[]
[null,"II.","By Other State Agencies"]
[]
[null,"III.","By Outside Vendors"]
[]
[null,null,null,"Total Rolls Produced",null,null,null,null,null,null,{"$f":"K50+K52+K54","v":0}]
[]
[null,"Storage Facilities"]
[null,"Does your division store records in storage facilities other than the office or State Records Center?"]
[null,null,null,null,null,null,null,null,null,"Yes   ",null,"No "]
[null,"If YES, please provide the following information:"]
[]
[]
[null,null,null,"Name and Address",null,null,null,null,"Media Type",null,"Volume"]
[]
[]
[]
[]
[null,"GS-0704  (REV 08/12)",null,null,null,null,null,null,null,null,"        RDA SW05"]

{"sheet":"Insurance","index":15,"n_rows":69,"n_cols":12,"rows_kept":69,"cut":false,"hidden":false,"merged":[[8,0,8,12],[9,1,9,7],[10,0,10,12],[4,0,4,12],[5,0,5,12],[6,1,6,9],[7,0,7,12]]}
[]
[]
[]
[" ","   "]
["DEPARTMENT OF GENERAL SERVICES"]
["RECORDS MANAGEMENT DIVISION"]
[]
["RECORDS HOLDING REPORT"]
[" FY July 1, 2011 through  June 30,  2012"]
[]
["SEE INSTRUCTIONS ON BACK"]
[]
[null,"Department Name: ______________________________________________ ",null,"Finance and Administration",null,null,null,null,"Allotment Code:",null,317.04000000000002]
[]
[null,"Division Name:      ______________________________________________",null,"Insurance Administration",null,null,null,null,"County:  ","Davidson"]
[]
[null,"Person Completing Form: ___________________________________  ",null,null,"Valerie Payne",null,null,null,"Phone:    ","615/741-4517"]
[]
[null,"Paper Record(s) Holdings"]
[null,"I.    Records on Hand July 1, 2011              ",null,null,null,null," (beginning volume from previous year) ",null,null,null,1380," Cu. Ft."]
[null,null,null,null,null,null,null,null,null," "]
[null,"II.   Records Created",null,null,null,null,null,null,null,"(+)",0,"Cu. Ft."]
[]
[null,"III.  Records Destroyed",null,null,null,null,null,null,null,"( - )",0,"Cu. Ft."]
[]
[null,"IV.  Records Transferred:"]
[null,null,null,"Records Center                                                      ",null,null,null,null,null,"( - )",0,"Cu. Ft."]
[null,null,null,"Library & Archives                                         ",null," ",null,null,null,"( - )    ",0,"Cu. Ft."]
[null,null,null,"Other: (please specify) ______________________________",null,null,null,null,null,"( - )",0,"Cu. Ft."]
[]
[null,"V.   Records on hand June 30, 2012                                  ",null,null,null,null,null,"(Line I + II – III – IV = V)",null,null,{"$f":"SUM(K20+K22-K24-K27-K28-K29)","v":1380},"Cu. Ft."]
[]
[null,"Records Category/Description:"]
[null,"Media:",null,null,null,"    Active  ","+"," Inactive",null,"=","    Totals"]
[]
[null,"I.      Paper   ",null," ",null,{"$f":"K31-H36","v":1380},null,null,null,null,{"$f":"K31","v":1380},"Cu. Ft"]
[]
[null,"II     Cartridge & Magnetic Tapes  ",null,null,null,null,null,null,null,null,{"$f":"F38+H38","v":0},"Cart/Reel"]
[]
[null,"III.   CD ROM",null,null,null,null,null,null,null,null,{"$f":"F40+H40","v":0},"Disks"]
[]
[null,"IV.   Magnetic/Optical Disks",null,null,null,null,null,null,null,null,{"$f":"F42+H42","v":0},"Disks"]
[null,null," "]
[null,"V.     Microfilm",null,null,null,null,null,null,null,null,{"$f":"F44+H44","v":0},"Rolls"]
[]
[null,"VI.   Microfiche",null,null,null,null,null,null,null,null,{"$f":"F46+H46","v":0},"Sheets"]
[]
[null,"Microfilm – Number of Rolls Produced Annually:"]
[]
[null,"I. ","By Reporting Agency"]
[]
[null,"II.","By Other State Agencies"]
[]
[null,"III.","By Outside Vendors"]
[]
[null,null,null,"Total Rolls Produced",null,null,null,null,null,null,{"$f":"K50+K52+K54","v":0}]
[]
[null,"Storage Facilities"]
[null,"Does your division store records in storage facilities other than the office or State Records Center?"]
[null,null,null,null,null,null,null,null,null,"Yes   ","X","No "]
[null,"If YES, please provide the following information:"]
[]
[]
[null,null,null,"Name and Address",null,null,null,null,"Media Type",null,"Volume"]
[]
[]
[]
[]
[null,"GS-0704  (REV 08/12)",null,null,null,null,null,null,null,null,"        RDA SW05"]

{"sheet":"LEGAL","index":16,"n_rows":69,"n_cols":12,"rows_kept":69,"cut":false,"hidden":false,"merged":[[8,0,8,12],[9,1,9,7],[10,0,10,12],[4,0,4,12],[5,0,5,12],[6,1,6,9],[7,0,7,12]]}
[]
[]
[]
[" ","   "]
["DEPARTMENT OF GENERAL SERVICES"]
["RECORDS MANAGEMENT DIVISION"]
[]
["RECORDS HOLDING REPORT"]
[" FY July 1, 2011 through  June 30,  2012"]
[]
["SEE INSTRUCTIONS ON BACK"]
[]
[null,"Department Name: ",null,"Finance & Administration",null,null,null,null,"Allotment Code:",null,317.01]
[]
[null,"Division Name:    ",null,"Legal",null,null,null,null,"County:  ","Davidson"]
[]
[null,"Person Completing Form:",null,null,"April Mayambu",null,null,null,"Phone:    ",6157410320]
[]
[null,"Paper Record(s) Holdings"]
[null,"I.    Records on Hand July 1, 2011               ",null,null,null,null," (beginning volume from previous year) ",null,null,null,58," Cu. Ft."]
[null,null,null,null,null,null,null,null,null," "]
[null,"II.   Records Created",null,null,null,null,null,null,null,"(+)",null,"Cu. Ft."]
[]
[null,"III.  Records Destroyed",null,null,null,null,null,null,null,"( - )",null,"Cu. Ft."]
[]
[null,"IV.  Records Transferred:"]
[null,null,null,"Records Center                                                      ",null,null,null,null,null,"( - )",null,"Cu. Ft."]
[null,null,null,"Library & Archives                                         ",null," ",null,null,null,"( - )    ",null,"Cu. Ft."]
[null,null,null,"Other: (please specify) ______________________________",null,null,null,null,null,"( - )",null,"Cu. Ft."]
[]
[null,"V.   Records on hand June 30, 2012                                 ",null,null,null,null,null,"(Line I + II – III – IV = V)",null,null,{"$f":"SUM(K20+K22-K24-K27-K28-K29)","v":58},"Cu. Ft."]
[]
[null,"Records Category/Description:"]
[null,"Media:",null,null,null,"    Active  ","+"," Inactive",null,"=","    Totals"]
[]
[null,"I.      Paper   ",null," ",null,{"$f":"K31-H36","v":58},null,null,null,null,{"$f":"K31","v":58},"Cu. Ft"]
[]
[null,"II     Cartridge & Magnetic Tapes  ",null,null,null,null,null,null,null,null,{"$f":"F38+H38","v":0},"Cart/Reel"]
[]
[null,"III.   CD ROM",null,null,null,null,null,null,null,null,{"$f":"F40+H40","v":0},"Disks"]
[]
[null,"IV.   Magnetic/Optical Disks",null,null,null,null,null,null,null,null,{"$f":"F42+H42","v":0},"Disks"]
[null,null," "]
[null,"V.     Microfilm",null,null,null,null,null,null,null,null,{"$f":"F44+H44","v":0},"Rolls"]
[]
[null,"VI.   Microfiche",null,null,null,null,null,null,null,null,{"$f":"F46+H46","v":0},"Sheets"]
[]
[null,"Microfilm – Number of Rolls Produced Annually:"]
[]
[null,"I. ","By Reporting Agency"]
[]
[null,"II.","By Other State Agencies"]
[]
[null,"III.","By Outside Vendors"]
[]
[null,null,null,"Total Rolls Produced",null,null,null,null,null,null,{"$f":"K50+K52+K54","v":0}]
[]
[null,"Storage Facilities"]
[null,"Does your division store records in storage facilities other than the office or State Records Center?"]
[null,null,null,null,null,null,null,null,null,"Yes   ",null,"No "]
[null,"If YES, please provide the following information:"]
[]
[]
[null,null,null,"Name and Address",null,null,null,null,"Media Type",null,"Volume"]
[]
[]
[]
[]
[null,"GS-0704  (REV 08/12)",null,null,null,null,null,null,null,null,"        RDA SW05"]

{"sheet":"EXEC","index":17,"n_rows":69,"n_cols":12,"rows_kept":69,"cut":false,"hidden":false,"merged":[[8,0,8,12],[9,1,9,7],[10,0,10,12],[4,0,4,12],[5,0,5,12],[6,1,6,9],[7,0,7,12]]}
[]
[]
[]
[" ","   "]
["DEPARTMENT OF GENERAL SERVICES"]
["RECORDS MANAGEMENT DIVISION"]
[]
["RECORDS HOLDING REPORT"]
[" FY July 1, 2011 through  June 30,  2012"]
[]
["SEE INSTRUCTIONS ON BACK"]
[]
[null,"Department Name: ",null,"Finance and Administration",null,null,null,null,"Allotment Code:",null,317.01]
[]
[null,"Division Name:    ",null,"Executive",null,null,null,null,"County:  ","Davidson"]
[]
[null,"Person Completing Form:",null,null,"Kimberly Birdwell",null,null,null,"Phone:    ","615-741-2401"]
[]
[null,"Paper Record(s) Holdings"]
[null,"I.    Records on Hand July 1, 2011             ",null,null,null,null," (beginning volume from previous year) ",null,null,null,4," Cu. Ft."]
[null,null,null,null,null,null,null,null,null," "]
[null,"II.   Records Created",null,null,null,null,null,null,null,"(+)",null,"Cu. Ft."]
[]
[null,"III.  Records Destroyed",null,null,null,null,null,null,null,"( - )",null,"Cu. Ft."]
[]
[null,"IV.  Records Transferred:"]
[null,null,null,"Records Center                                                      ",null,null,null,null,null,"( - )",null,"Cu. Ft."]
[null,null,null,"Library & Archives                                         ",null," ",null,null,null,"( - )    ",null,"Cu. Ft."]
[null,null,null,"Other: (please specify) ______________________________",null,null,null,null,null,"( - )",null,"Cu. Ft."]
[]
[null,"V.   Records on hand June 30, 2012                                 ",null,null,null,null,null,"(Line I + II – III – IV = V)",null,null,{"$f":"SUM(K20+K22-K24-K27-K28-K29)","v":4},"Cu. Ft."]
[]
[null,"Records Category/Description:"]
[null,"Media:",null,null,null,"    Active  ","+"," Inactive",null,"=","    Totals"]
[]
[null,"I.      Paper   ",null," ",null,{"$f":"K31-H36","v":4},null,null,null,null,{"$f":"K31","v":4},"Cu. Ft"]
[]
[null,"II     Cartridge & Magnetic Tapes  ",null,null,null,null,null,null,null,null,{"$f":"F38+H38","v":0},"Cart/Reel"]
[]
[null,"III.   CD ROM",null,null,null,null,null,null,null,null,{"$f":"F40+H40","v":0},"Disks"]
[]
[null,"IV.   Magnetic/Optical Disks",null,null,null,null,null,null,null,null,{"$f":"F42+H42","v":0},"Disks"]
[null,null," "]
[null,"V.     Microfilm",null,null,null,null,null,null,null,null,{"$f":"F44+H44","v":0},"Rolls"]
[]
[null,"VI.   Microfiche",null,null,null,null,null,null,null,null,{"$f":"F46+H46","v":0},"Sheets"]
[]
[null,"Microfilm – Number of Rolls Produced Annually:"]
[]
[null,"I. ","By Reporting Agency"]
[]
[null,"II.","By Other State Agencies"]
[]
[null,"III.","By Outside Vendors"]
[]
[null,null,null,"Total Rolls Produced",null,null,null,null,null,null,{"$f":"K50+K52+K54","v":0}]
[]
[null,"Storage Facilities"]
[null,"Does your division store records in storage facilities other than the office or State Records Center?"]
[null,null,null,null,null,null,null,null,null,"Yes   ","X","No "]
[null,"If YES, please provide the following information:"]
[]
[]
[null,null,null,"Name and Address",null,null,null,null,"Media Type",null,"Volume"]
[]
[]
[]
[]
[null,"GS-0704  (REV 08/12)",null,null,null,null,null,null,null,null,"        RDA SW05"]

{"sheet":"Budget","index":18,"n_rows":69,"n_cols":12,"rows_kept":69,"cut":false,"hidden":false,"merged":[[8,0,8,12],[9,1,9,7],[10,0,10,12],[4,0,4,12],[5,0,5,12],[6,1,6,9],[7,0,7,12]]}
[]
[]
[]
[" ","   "]
["DEPARTMENT OF GENERAL SERVICES"]
["RECORDS MANAGEMENT DIVISION"]
[]
["RECORDS HOLDING REPORT"]
[" FY July 1, 2011 through  June 30,  2012"]
[]
["SEE INSTRUCTIONS ON BACK"]
[]
[null,"Department Name: ",null,"Finance & Administration",null,null,null,null,"Allotment Code:",null,317.02]
[]
[null,"Division Name:    ",null,"Budget",null,null,null,null,"County:  ","Davidson"]
[]
[null,"Person Completing Form:",null,null,"Amie Guthormsen",null,null,null,"Phone:    ","615-741-4806"]
[]
[null,"Paper Record(s) Holdings"]
[null,"I.    Records on Hand July 1, 2011              ",null,null,null,null," (beginning volume from previous year) ",null,null,null,164," Cu. Ft."]
[null,null,null,null,null,null,null,null,null," "]
[null,"II.   Records Created",null,null,null,null,null,null,null,"(+)",8,"Cu. Ft."]
[]
[null,"III.  Records Destroyed",null,null,null,null,null,null,null,"( - )",8,"Cu. Ft."]
[]
[null,"IV.  Records Transferred:"]
[null,null,null,"Records Center                                                      ",null,null,null,null,null,"( - )",null,"Cu. Ft."]
[null,null,null,"Library & Archives                                         ",null," ",null,null,null,"( - )    ",null,"Cu. Ft."]
[null,null,null,"Other: (please specify) ______________________________",null,null,null,null,null,"( - )",null,"Cu. Ft."]
[]
[null,"V.   Records on hand June 30, 2012                                  ",null,null,null,null,null,"(Line I + II – III – IV = V)",null,null,{"$f":"SUM(K20+K22-K24-K27-K28-K29)","v":164},"Cu. Ft."]
[]
[null,"Records Category/Description:"]
[null,"Media:",null,null,null,"    Active  ","+"," Inactive",null,"=","    Totals"]
[]
[null,"I.      Paper   ",null," ",null,{"$f":"K31-H36","v":164},null,null,null,null,{"$f":"K31","v":164},"Cu. Ft"]
[]
[null,"II     Cartridge & Magnetic Tapes  ",null,null,null,null,null,null,null,null,{"$f":"F38+H38","v":0},"Cart/Reel"]
[]
[null,"III.   CD ROM",null,null,null,null,null,null,null,null,{"$f":"F40+H40","v":0},"Disks"]
[]
[null,"IV.   Magnetic/Optical Disks",null,null,null,null,null,null,null,null,{"$f":"F42+H42","v":0},"Disks"]
[null,null," "]
[null,"V.     Microfilm",null,null,null,null,null,null,null,null,{"$f":"F44+H44","v":0},"Rolls"]
[]
[null,"VI.   Microfiche",null,null,null,null,null,null,null,null,{"$f":"F46+H46","v":0},"Sheets"]
[]
[null,"Microfilm – Number of Rolls Produced Annually:"]
[]
[null,"I. ","By Reporting Agency"]
[]
[null,"II.","By Other State Agencies"]
[]
[null,"III.","By Outside Vendors"]
[]
[null,null,null,"Total Rolls Produced",null,null,null,null,null,null,{"$f":"K50+K52+K54","v":0}]
[]
[null,"Storage Facilities"]
[null,"Does your division store records in storage facilities other than the office or State Records Center?"]
[null,null,null,null,null,null,null,null,null,"Yes   ","X","No "]
[null,"If YES, please provide the following information:"]
[]
[]
[null,null,null,"Name and Address",null,null,null,null,"Media Type",null,"Volume"]
[]
[]
[]
[]
[null,"GS-0704  (REV 08/12)",null,null,null,null,null,null,null,null,"        RDA SW05"]

{"sheet":"Accounts","index":19,"n_rows":69,"n_cols":12,"rows_kept":69,"cut":false,"hidden":false,"merged":[[8,0,8,12],[9,1,9,7],[10,0,10,12],[4,0,4,12],[5,0,5,12],[6,1,6,9],[7,0,7,12]]}
[]
[]
[]
[" ","   "]
["DEPARTMENT OF GENERAL SERVICES"]
["RECORDS MANAGEMENT DIVISION"]
[]
["RECORDS HOLDING REPORT"]
[" FY July 1, 2011 through  June 30,  2012"]
[]
["SEE INSTRUCTIONS ON BACK"]
[]
[null,"Department Name: ______________________________________________ ",null,"FINANCE AND ADMINISTRATION",null,null,null,null,"Allotment Code:",null,317.05]
[]
[null,"Division Name:      ______________________________________________",null,"ACCOUNTS",null,null,null,null,"County:  ","DAVIDSON"]
[]
[null,"Person Completing Form: ___________________________________  ",null,null,"Juanita McCrary",null,null,null,"Phone:    ","741-2140"]
[]
[null,"Paper Record(s) Holdings"]
[null,"I.    Records on Hand July 1, 2011               ",null,null,null,null," (beginning volume from previous year) ",null,null,null,3964," Cu. Ft."]
[null,null,null,null,null,null,null,null,null," "]
[null,"II.   Records Created",null,null,null,null,null,null,null,"(+)",null,"Cu. Ft."]
[]
[null,"III.  Records Destroyed",null,null,null,null,null,null,null,"( - )",null,"Cu. Ft."]
[]
[null,"IV.  Records Transferred:"]
[null,null,null,"Records Center                                                      ",null,null,null,null,null,"( - )",null,"Cu. Ft."]
[null,null,null,"Library & Archives                                         ",null," ",null,null,null,"( - )    ",null,"Cu. Ft."]
[null,null,null,"Other: (please specify) ______________________________",null,null,null,null,null,"( - )",null,"Cu. Ft."]
[]
[null,"V.   Records on hand June 30, 2012                                 ",null,null,null,null,null,"(Line I + II – III – IV = V)",null,null,{"$f":"SUM(K20+K22-K24-K27-K28-K29)","v":3964},"Cu. Ft."]
[]
[null,"Records Category/Description:"]
[null,"Media:",null,null,null,"    Active  ","+"," Inactive",null,"=","    Totals"]
[]
[null,"I.      Paper   ",null," ",null,{"$f":"K31-H36","v":3964},null,null,null,null,{"$f":"K31","v":3964},"Cu. Ft"]
[]
[null,"II     Cartridge & Magnetic Tapes  ",null,null,null,null,null,null,null,null,{"$f":"F38+H38","v":0},"Cart/Reel"]
[]
[null,"III.   CD ROM",null,null,null,null,null,null,null,null,{"$f":"F40+H40","v":0},"Disks"]
[]
[null,"IV.   Magnetic/Optical Disks",null,null,null,null,null,null,null,null,{"$f":"F42+H42","v":0},"Disks"]
[null,null," "]
[null,"V.     Microfilm",null,null,null,null,null,null,null,null,{"$f":"F44+H44","v":0},"Rolls"]
[]
[null,"VI.   Microfiche",null,null,null,null,null,null,null,null,{"$f":"F46+H46","v":0},"Sheets"]
[]
[null,"Microfilm – Number of Rolls Produced Annually:"]
[]
[null,"I. ","By Reporting Agency"]
[]
[null,"II.","By Other State Agencies"]
[]
[null,"III.","By Outside Vendors"]
[]
[null,null,null,"Total Rolls Produced",null,null,null,null,null,null,{"$f":"K50+K52+K54","v":0}]
[]
[null,"Storage Facilities"]
[null,"Does your division store records in storage facilities other than the office or State Records Center?"]
[null,null,null,null,null,null,null,null,null,"Yes   ",null,"No "]
[null,"If YES, please provide the following information:"]
[]
[]
[null,null,null,"Name and Address",null,null,null,null,"Media Type",null,"Volume"]
[]
[]
[]
[]
[null,"GS-0704  (REV 08/12)",null,null,null,null,null,null,null,null,"        RDA SW05"]

{"sheet":"Admin","index":20,"n_rows":69,"n_cols":12,"rows_kept":69,"cut":false,"hidden":false,"merged":[[8,0,8,12],[9,1,9,7],[10,0,10,12],[4,0,4,12],[5,0,5,12],[6,1,6,9],[7,0,7,12]]}
[]
[]
[]
[" ","   "]
["DEPARTMENT OF GENERAL SERVICES"]
["RECORDS MANAGEMENT DIVISION"]
[]
["RECORDS HOLDING REPORT"]
[" FY July 1, 2011 through  June 30,  2012"]
[]
["SEE INSTRUCTIONS ON BACK"]
[]
[null,"Department Name: ",null,"Finance & Administration",null,null,null,null,"Allotment Code:",null,317.01]
[]
[null,"Division Name:    ",null,"Administration",null,null,null,null,"County:  ","Davidson"]
[]
[null,"Person Completing Form:",null,null,"Linda Deason",null,null,null,"Phone:    ",6157415100]
[]
[null,"Paper Record(s) Holdings"]
[null,"I.    Records on Hand July 1, 2011               ",null,null,null,null," (beginning volume from previous year) ",null,null,null,3," Cu. Ft."]
[null,null,null,null,null,null,null,null,null," "]
[null,"II.   Records Created",null,null,null,null,null,null,null,"(+)",null,"Cu. Ft."]
[]
[null,"III.  Records Destroyed",null,null,null,null,null,null,null,"( - )",null,"Cu. Ft."]
[]
[null,"IV.  Records Transferred:"]
[null,null,null,"Records Center                                                      ",null,null,null,null,null,"( - )",null,"Cu. Ft."]
[null,null,null,"Library & Archives                                         ",null," ",null,null,null,"( - )    ",null,"Cu. Ft."]
[null,null,null,"Other: (please specify) ______________________________",null,null,null,null,null,"( - )",null,"Cu. Ft."]
[]
[null,"V.   Records on hand June 30, 2012                                 ",null,null,null,null,null,"(Line I + II – III – IV = V)",null,null,{"$f":"SUM(K20+K22-K24-K27-K28-K29)","v":3},"Cu. Ft."]
[]
[null,"Records Category/Description:"]
[null,"Media:",null,null,null,"    Active  ","+"," Inactive",null,"=","    Totals"]
[]
[null,"I.      Paper   ",null," ",null,{"$f":"K31-H36","v":3},null,null,null,null,{"$f":"K31","v":3},"Cu. Ft"]
[]
[null,"II     Cartridge & Magnetic Tapes  ",null,null,null,null,null,null,null,null,{"$f":"F38+H38","v":0},"Cart/Reel"]
[]
[null,"III.   CD ROM",null,null,null,null,null,null,null,null,{"$f":"F40+H40","v":0},"Disks"]
[]
[null,"IV.   Magnetic/Optical Disks",null,null,null,null,null,null,null,null,{"$f":"F42+H42","v":0},"Disks"]
[null,null," "]
[null,"V.     Microfilm",null,null,null,null,null,null,null,null,{"$f":"F44+H44","v":0},"Rolls"]
[]
[null,"VI.   Microfiche",null,null,null,null,null,null,null,null,{"$f":"F46+H46","v":0},"Sheets"]
[]
[null,"Microfilm – Number of Rolls Produced Annually:"]
[]
[null,"I. ","By Reporting Agency"]
[]
[null,"II.","By Other State Agencies"]
[]
[null,"III.","By Outside Vendors"]
[]
[null,null,null,"Total Rolls Produced",null,null,null,null,null,null,{"$f":"K50+K52+K54","v":0}]
[]
[null,"Storage Facilities"]
[null,"Does your division store records in storage facilities other than the office or State Records Center?"]
[null,null,null,null,null,null,null,null,null,"Yes   ",null,"No "]
[null,"If YES, please provide the following information:"]
[]
[]
[null,null,null,"Name and Address",null,null,null,null,"Media Type",null,"Volume"]
[]
[]
[]
[]
[null,"GS-0704  (REV 08/12)",null,null,null,null,null,null,null,null,"        RDA SW05"]

{"sheet":"OBF","index":21,"n_rows":69,"n_cols":12,"rows_kept":69,"cut":false,"hidden":false,"merged":[[8,0,8,12],[9,1,9,7],[10,0,10,12],[4,0,4,12],[5,0,5,12],[6,1,6,9],[7,0,7,12]]}
[]
[]
[]
[" ","   "]
["DEPARTMENT OF GENERAL SERVICES"]
["RECORDS MANAGEMENT DIVISION"]
[]
["RECORDS HOLDING REPORT"]
[" FY July 1, 2011 through  June 30,  2012"]
[]
["SEE INSTRUCTIONS ON BACK"]
[]
[null,"Department Name: ",null,"Finance & Administration",null,null,null,null,"Allotment Code:",null,317.01]
[]
[null,"Division Name:    ",null,"Office of Business and Finance",null,null,null,null,"County:  ","Davidson"]
[]
[null,"Person Completing Form:",null,null,"Tami Jefferson",null,null,null,"Phone:    ",6152534052]
[]
[null,"Paper Record(s) Holdings"]
[null,"I.    Records on Hand July 1, 2011              ",null,null,null,null," (beginning volume from previous year) ",null,null,null,311," Cu. Ft."]
[null,null,null,null,null,null,null,null,null," "]
[null,"II.   Records Created",null,null,null,null,null,null,null,"(+)",10,"Cu. Ft."]
[]
[null,"III.  Records Destroyed",null,null,null,null,null,null,null,"( - )",10,"Cu. Ft."]
[]
[null,"IV.  Records Transferred:"]
[null,null,null,"Records Center                                                      ",null,null,null,null,null,"( - )",null,"Cu. Ft."]
[null,null,null,"Library & Archives                                         ",null," ",null,null,null,"( - )    ",null,"Cu. Ft."]
[null,null,null,"Other: (please specify) ______________________________",null,null,null,null,null,"( - )",null,"Cu. Ft."]
[]
[null,"V.   Records on hand June 30, 2012                                 ",null,null,null,null,null,"(Line I + II – III – IV = V)",null,null,{"$f":"SUM(K20+K22-K24-K27-K28-K29)","v":311},"Cu. Ft."]
[]
[null,"Records Category/Description:"]
[null,"Media:",null,null,null,"    Active  ","+"," Inactive",null,"=","    Totals"]
[]
[null,"I.      Paper   ",null," ",null,{"$f":"K31-H36","v":311},null,null,null,null,{"$f":"K31","v":311},"Cu. Ft"]
[]
[null,"II     Cartridge & Magnetic Tapes  ",null,null,null,null,null,null,null,null,{"$f":"F38+H38","v":0},"Cart/Reel"]
[]
[null,"III.   CD ROM",null,null,null,null,null,null,null,null,{"$f":"F40+H40","v":0},"Disks"]
[]
[null,"IV.   Magnetic/Optical Disks",null,null,null,null,null,null,null,null,{"$f":"F42+H42","v":0},"Disks"]
[null,null," "]
[null,"V.     Microfilm",null,null,null,null,null,null,null,null,{"$f":"F44+H44","v":0},"Rolls"]
[]
[null,"VI.   Microfiche",null,null,null,null,null,null,null,null,{"$f":"F46+H46","v":0},"Sheets"]
[]
[null,"Microfilm – Number of Rolls Produced Annually:"]
[]
[null,"I. ","By Reporting Agency"]
[]
[null,"II.","By Other State Agencies"]
[]
[null,"III.","By Outside Vendors"]
[]
[null,null,null,"Total Rolls Produced",null,null,null,null,null,null,{"$f":"K50+K52+K54","v":0}]
[]
[null,"Storage Facilities"]
[null,"Does your division store records in storage facilities other than the office or State Records Center?"]
[null,null,null,null,null,null,null,null,null,"Yes   ","X","No "]
[null,"If YES, please provide the following information:"]
[]
[]
[null,null,null,"Name and Address",null,null,null,null,"Media Type",null,"Volume"]
[]
[]
[]
[]
[null,"GS-0704  (REV 08/12)",null,null,null,null,null,null,null,null,"        RDA SW05"]

{"sheet":"FABS","index":22,"n_rows":69,"n_cols":12,"rows_kept":69,"cut":false,"hidden":false,"merged":[[8,0,8,12],[9,1,9,7],[10,0,10,12],[4,0,4,12],[5,0,5,12],[6,1,6,9],[7,0,7,12]]}
[]
[]
[]
[" ","   "]
["DEPARTMENT OF GENERAL SERVICES"]
["RECORDS MANAGEMENT DIVISION"]
[]
["RECORDS HOLDING REPORT"]
[" FY July 1, 2011 through  June 30,  2012"]
[]
["SEE INSTRUCTIONS ON BACK"]
[]
[null,"Department Name: ",null,"Finance & Administration",null,null,null,null,"Allotment Code:",null,317.01]
[]
[null,"Division Name:    ",null,"Billing Services",null,null,null,null,"County:  ","Davidson"]
[]
[null,"Person Completing Form:",null,null,"Lori Hedge",null,null,null,"Phone:    ",6157410876]
[]
[null,"Paper Record(s) Holdings"]
[null,"I.    Records on Hand July 1, 2011             ",null,null,null,null," (beginning volume from previous year) ",null,null,null,56," Cu. Ft."]
[null,null,null,null,null,null,null,null,null," "]
[null,"II.   Records Created",null,null,null,null,null,null,null,"(+)",12,"Cu. Ft."]
[]
[null,"III.  Records Destroyed",null,null,null,null,null,null,null,"( - )",44,"Cu. Ft."]
[]
[null,"IV.  Records Transferred:"]
[null,null,null,"Records Center                                                      ",null,null,null,null,null,"( - )",null,"Cu. Ft."]
[null,null,null,"Library & Archives                                         ",null," ",null,null,null,"( - )    ",null,"Cu. Ft."]
[null,null,null,"Other: (please specify) ______________________________",null,null,null,null,null,"( - )",null,"Cu. Ft."]
[]
[null,"V.   Records on hand June 30, 2012                                  ",null,null,null,null,null,"(Line I + II – III – IV = V)",null,null,{"$f":"SUM(K20+K22-K24-K27-K28-K29)","v":24},"Cu. Ft."]
[]
[null,"Records Category/Description:"]
[null,"Media:",null,null,null,"    Active  ","+"," Inactive",null,"=","    Totals"]
[]
[null,"I.      Paper   ",null," ",null,{"$f":"K31-H36","v":24},null,null,null,null,{"$f":"K31","v":24},"Cu. Ft"]
[]
[null,"II     Cartridge & Magnetic Tapes  ",null,null,null,null,null,null,null,null,{"$f":"F38+H38","v":0},"Cart/Reel"]
[]
[null,"III.   CD ROM",null,null,null,264,null,null,null,null,{"$f":"F40+H40","v":264},"Disks"]
[]
[null,"IV.   Magnetic/Optical Disks",null,null,null,null,null,null,null,null,{"$f":"F42+H42","v":0},"Disks"]
[null,null," "]
[null,"V.     Microfilm",null,null,null,null,null,null,null,null,{"$f":"F44+H44","v":0},"Rolls"]
[]
[null,"VI.   Microfiche",null,null,null,null,null,null,null,null,{"$f":"F46+H46","v":0},"Sheets"]
[]
[null,"Microfilm – Number of Rolls Produced Annually:"]
[]
[null,"I. ","By Reporting Agency"]
[]
[null,"II.","By Other State Agencies"]
[]
[null,"III.","By Outside Vendors"]
[]
[null,null,null,"Total Rolls Produced",null,null,null,null,null,null,{"$f":"K50+K52+K54","v":0}]
[]
[null,"Storage Facilities"]
[null,"Does your division store records in storage facilities other than the office or State Records Center?"]
[null,null,null,null,null,null,null,null,null,"Yes   ","X","No "]
[null,"If YES, please provide the following information:"]
[]
[]
[null,null,null,"Name and Address",null,null,null,null,"Media Type",null,"Volume"]
[]
[]
[]
[]
[null,"GS-0704  (REV 08/12)",null,null,null,null,null,null,null,null,"        RDA SW05"]

{"sheet":"ITM","index":23,"n_rows":69,"n_cols":12,"rows_kept":69,"cut":false,"hidden":false,"merged":[[8,0,8,12],[9,1,9,7],[10,0,10,12],[4,0,4,12],[5,0,5,12],[6,1,6,9],[7,0,7,12]]}
[]
[]
[]
[" ","   "]
["DEPARTMENT OF GENERAL SERVICES"]
["RECORDS MANAGEMENT DIVISION"]
[]
["RECORDS HOLDING REPORT"]
[" FY July 1, 2011 through  June 30,  2012"]
[]
["SEE INSTRUCTIONS ON BACK"]
[]
[null,"Department Name: ______________________________________________ ",null,"Finance & Administration",null,null,null,null,"Allotment Code:",null,317.01]
[]
[null,"Division Name:      ______________________________________________",null,"Administration -ITM",null,null,null,null,"County:  ","Davidson"]
[]
[null,"Person Completing Form: ___________________________________  ",null,null,"Jeanne Smith",null,null,null,"Phone:    ",6155323486]
[]
[null,"Paper Record(s) Holdings"]
[null,"I.    Records on Hand July 1, 2011               ",null,null,null,null," (beginning volume from previous year) ",null,null,null,45," Cu. Ft."]
[null,null,null,null,null,null,null,null,null," "]
[null,"II.   Records Created",null,null,null,null,null,null,null,"(+)",2,"Cu. Ft."]
[]
[null,"III.  Records Destroyed",null,null,null,null,null,null,null,"( - )",4,"Cu. Ft."]
[]
[null,"IV.  Records Transferred:"]
[null,null,null,"Records Center                                                      ",null,null,null,null,null,"( - )",null,"Cu. Ft."]
[null,null,null,"Library & Archives                                         ",null," ",null,null,null,"( - )    ",null,"Cu. Ft."]
[null,null,null,"Other: (please specify) ______________________________",null,null,null,null,null,"( - )",null,"Cu. Ft."]
[]
[null,"V.   Records on hand June 30, 2012                                  ",null,null,null,null,null,"(Line I + II – III – IV = V)",null,null,{"$f":"SUM(K20+K22-K24-K27-K28-K29)","v":43},"Cu. Ft."]
[]
[null,"Records Category/Description:"]
[null,"Media:",null,null,null,"    Active  ","+"," Inactive",null,"=","    Totals"]
[]
[null,"I.      Paper   ",null," ",null,{"$f":"K31-H36","v":43},null,null,null,null,{"$f":"K31","v":43},"Cu. Ft"]
[]
[null,"II     Cartridge & Magnetic Tapes  ",null,null,null,null,null,null,null,null,{"$f":"F38+H38","v":0},"Cart/Reel"]
[]
[null,"III.   CD ROM",null,null,null,null,null,null,null,null,{"$f":"F40+H40","v":0},"Disks"]
[]
[null,"IV.   Magnetic/Optical Disks",null,null,null,null,null,null,null,null,{"$f":"F42+H42","v":0},"Disks"]
[null,null," "]
[null,"V.     Microfilm",null,null,null,null,null,null,null,null,{"$f":"F44+H44","v":0},"Rolls"]
[]
[null,"VI.   Microfiche",null,null,null,null,null,null,null,null,{"$f":"F46+H46","v":0},"Sheets"]
[]
[null,"Microfilm – Number of Rolls Produced Annually:"]
[]
[null,"I. ","By Reporting Agency"]
[]
[null,"II.","By Other State Agencies"]
[]
[null,"III.","By Outside Vendors"]
[]
[null,null,null,"Total Rolls Produced",null,null,null,null,null,null,{"$f":"K50+K52+K54","v":0}]
[]
[null,"Storage Facilities"]
[null,"Does your division store records in storage facilities other than the office or State Records Center?"]
[null,null,null,null,null,null,null,null,null,"Yes   ","X","No "]
[null,"If YES, please provide the following information:"]
[]
[]
[null,null,null,"Name and Address",null,null,null,null,"Media Type",null,"Volume"]
[]
[]
[]
[]
[null,"GS-0704  (REV 08/12)",null,null,null,null,null,null,null,null,"        RDA SW05"]

{"sheet":"HRO","index":24,"n_rows":69,"n_cols":12,"rows_kept":69,"cut":false,"hidden":false,"merged":[[8,0,8,12],[9,1,9,7],[10,0,10,12],[4,0,4,12],[5,0,5,12],[6,1,6,9],[7,0,7,12]]}
[]
[]
[]
[" ","   "]
["DEPARTMENT OF GENERAL SERVICES"]
["RECORDS MANAGEMENT DIVISION"]
[]
["RECORDS HOLDING REPORT"]
[" FY July 1, 2011 through  June 30,  2012"]
[]
["SEE INSTRUCTIONS ON BACK"]
[]
[null,"Department Name: ",null,"Finance & Administration",null,null,null,null,"Allotment Code:",null,317.01]
[]
[null,"Division Name:    ",null,"Human Resource Office",null,null,null,null,"County:  ","Davidson"]
[]
[null,"Person Completing Form:",null,null,"Beverly Stewart",null,null,null,"Phone:    ",6157417596]
[]
[null,"Paper Record(s) Holdings"]
[null,"I.    Records on Hand July 1, 2011              ",null,null,null,null," (beginning volume from previous year) ",null,null,null,411," Cu. Ft."]
[null,null,null,null,null,null,null,null,null," "]
[null,"II.   Records Created",null,null,null,null,null,null,null,"(+)",null,"Cu. Ft."]
[]
[null,"III.  Records Destroyed",null,null,null,null,null,null,null,"( - )",null,"Cu. Ft."]
[]
[null,"IV.  Records Transferred:"]
[null,null,null,"Records Center                                                      ",null,null,null,null,null,"( - )",null,"Cu. Ft."]
[null,null,null,"Library & Archives                                         ",null," ",null,null,null,"( - )    ",null,"Cu. Ft."]
[null,null,null,"Other: (please specify) ______________________________",null,null,null,null,null,"( - )",null,"Cu. Ft."]
[]
[null,"V.   Records on hand June 30, 2012                                ",null,null,null,null,null,"(Line I + II – III – IV = V)",null,null,{"$f":"SUM(K20+K22-K24-K27-K28-K29)","v":411},"Cu. Ft."]
[]
[null,"Records Category/Description:"]
[null,"Media:",null,null,null,"    Active  ","+"," Inactive",null,"=","    Totals"]
[]
[null,"I.      Paper   ",null," ",null,{"$f":"K31-H36","v":411},null,null,null,null,{"$f":"K31","v":411},"Cu. Ft"]
[]
[null,"II     Cartridge & Magnetic Tapes  ",null,null,null,null,null,null,null,null,{"$f":"F38+H38","v":0},"Cart/Reel"]
[]
[null,"III.   CD ROM",null,null,null,null,null,null,null,null,{"$f":"F40+H40","v":0},"Disks"]
[]
[null,"IV.   Magnetic/Optical Disks",null,null,null,null,null,null,null,null,{"$f":"F42+H42","v":0},"Disks"]
[null,null," "]
[null,"V.     Microfilm",null,null,null,null,null,null,null,null,{"$f":"F44+H44","v":0},"Rolls"]
[]
[null,"VI.   Microfiche",null,null,null,null,null,null,null,null,{"$f":"F46+H46","v":0},"Sheets"]
[]
[null,"Microfilm – Number of Rolls Produced Annually:"]
[]
[null,"I. ","By Reporting Agency"]
[]
[null,"II.","By Other State Agencies"]
[]
[null,"III.","By Outside Vendors"]
[]
[null,null,null,"Total Rolls Produced",null,null,null,null,null,null,{"$f":"K50+K52+K54","v":0}]
[]
[null,"Storage Facilities"]
[null,"Does your division store records in storage facilities other than the office or State Records Center?"]
[null,null,null,null,null,null,null,null,null,"Yes   ","X","No "]
[null,"If YES, please provide the following information:"]
[]
[]
[null,null,null,"Name and Address",null,null,null,null,"Media Type",null,"Volume"]
[]
[]
[]
[]
[null,"GS-0704  (REV 08/12)",null,null,null,null,null,null,null,null,"        RDA SW05"]

{"sheet":"Audit","index":25,"n_rows":69,"n_cols":12,"rows_kept":69,"cut":false,"hidden":false,"merged":[[8,0,8,12],[9,1,9,7],[10,0,10,12],[4,0,4,12],[5,0,5,12],[6,1,6,9],[7,0,7,12]]}
[]
[]
[]
[" ","   "]
["DEPARTMENT OF GENERAL SERVICES"]
["RECORDS MANAGEMENT DIVISION"]
[]
["RECORDS HOLDING REPORT"]
[" FY July 1, 2011 through  June 30,  2012"]
[]
["SEE INSTRUCTIONS ON BACK"]
[]
[null,"Department Name: ",null,"Finance & Administration",null,null,null,null,"Allotment Code:",null,317.01]
[]
[null,"Division Name:    ",null,"Internal Audit / under RDS",null,null,null,null,"County:  ","Davidson"]
[]
[null,"Person Completing Form:",null,null,"Please combine with RDS",null,null,null,"Phone:    ",6157416018]
[]
[null,"Paper Record(s) Holdings"]
[null,"I.    Records on Hand July 1, 2011               ",null,null,null,null," (beginning volume from previous year) ",null,null,null,22," Cu. Ft."]
[null,null,null,null,null,null,null,null,null," "]
[null,"II.   Records Created",null,null,null,null,null,null,null,"(+)",null,"Cu. Ft."]
[]
[null,"III.  Records Destroyed",null,null,null,null,null,null,null,"( - )",null,"Cu. Ft."]
[]
[null,"IV.  Records Transferred:"]
[null,null,null,"Records Center                                                      ",null,null,null,null,null,"( - )",null,"Cu. Ft."]
[null,null,null,"Library & Archives                                         ",null," ",null,null,null,"( - )    ",null,"Cu. Ft."]
[null,null,null,"Other: (please specify) ______________________________",null,null,null,null,null,"( - )",null,"Cu. Ft."]
[]
[null,"V.   Records on hand June 30, 2012                                  ",null,null,null,null,null,"(Line I + II – III – IV = V)",null,null,{"$f":"SUM(K20+K22-K24-K27-K28-K29)","v":22},"Cu. Ft."]
[]
[null,"Records Category/Description:"]
[null,"Media:",null,null,null,"    Active  ","+"," Inactive",null,"=","    Totals"]
[]
[null,"I.      Paper   ",null," ",null,{"$f":"K31-H36","v":22},null,null,null,null,{"$f":"K31","v":22},"Cu. Ft"]
[]
[null,"II     Cartridge & Magnetic Tapes  ",null,null,null,null,null,null,null,null,{"$f":"F38+H38","v":0},"Cart/Reel"]
[]
[null,"III.   CD ROM",null,null,null,null,null,null,null,null,{"$f":"F40+H40","v":0},"Disks"]
[]
[null,"IV.   Magnetic/Optical Disks",null,null,null,null,null,null,null,null,{"$f":"F42+H42","v":0},"Disks"]
[null,null," "]
[null,"V.     Microfilm",null,null,null,null,null,null,null,null,{"$f":"F44+H44","v":0},"Rolls"]
[]
[null,"VI.   Microfiche",null,null,null,null,null,null,null,null,{"$f":"F46+H46","v":0},"Sheets"]
[]
[null,"Microfilm – Number of Rolls Produced Annually:"]
[]
[null,"I. ","By Reporting Agency"]
[]
[null,"II.","By Other State Agencies"]
[]
[null,"III.","By Outside Vendors"]
[]
[null,null,null,"Total Rolls Produced",null,null,null,null,null,null,{"$f":"K50+K52+K54","v":0}]
[]
[null,"Storage Facilities"]
[null,"Does your division store records in storage facilities other than the office or State Records Center?"]
[null,null,null,null,null,null,null,null,null,"Yes   ",null,"No "]
[null,"If YES, please provide the following information:"]
[]
[]
[null,null,null,"Name and Address",null,null,null,null,"Media Type",null,"Volume"]
[]
[]
[]
[]
[null,"GS-0704  (REV 08/12)",null,null,null,null,null,null,null,null,"        RDA SW05"]

{"sheet":"OIG","index":26,"n_rows":69,"n_cols":12,"rows_kept":69,"cut":false,"hidden":false,"merged":[[8,0,8,12],[9,1,9,7],[10,0,10,12],[4,0,4,12],[5,0,5,12],[6,1,6,9],[7,0,7,12]]}
[]
[]
[]
[" ","   "]
["DEPARTMENT OF GENERAL SERVICES"]
["RECORDS MANAGEMENT DIVISION"]
[]
["RECORDS HOLDING REPORT"]
[" FY July 1, 2011 through June 30, 2012"]
[]
["SEE INSTRUCTIONS ON BACK"]
[]
[null,"Department Name: ",null,"Finance & Administration",null,null,null,null,"Allotment Code:",null,317.12]
[]
[null,"Division Name:    ",null,"Office of Inspector General",null,null,null,null,"County:  ","Davidson"]
[]
[null,"Person Completing Form:",null,null,"Georganne Martin",null,null,null,"Phone:    ","615 687-7200"]
[]
[null,"Paper Record(s) Holdings"]
[null,"I.    Records on Hand July 1, 2011              ",null,null,null,null," (beginning volume from previous year) ",null,null,null,626," Cu. Ft."]
[null,null,null,null,null,null,null,null,null," "]
[null,"II.   Records Created",null,null,null,null,null,null,null,"(+)",396,"Cu. Ft."]
[]
[null,"III.  Records Destroyed",null,null,null,null,null,null,null,"( - )",602,"Cu. Ft."]
[]
[null,"IV.  Records Transferred:"]
[null,null,null,"Records Center                                                      ",null,null,null,null,null,"( - )",null,"Cu. Ft."]
[null,null,null,"Library & Archives                                         ",null," ",null,null,null,"( - )    ",null,"Cu. Ft."]
[null,null,null,"Other: (please specify) ______________________________",null,null,null,null,null,"( - )",null,"Cu. Ft."]
[]
[null,"V.   Records on hand June 30, 2012                                  ",null,null,null,null,null,"(Line I + II – III – IV = V)",null,null,{"$f":"SUM(K20+K22-K24-K27-K28-K29)","v":420},"Cu. Ft."]
[]
[null,"Records Category/Description:"]
[null,"Media:",null,null,null,"    Active  ","+"," Inactive",null,"=","    Totals"]
[]
[null,"I.      Paper   ",null," ",null,{"$f":"K31-H36","v":420},null,null,null,null,{"$f":"K31","v":420},"Cu. Ft"]
[]
[null,"II     Cartridge & Magnetic Tapes  ",null,null,null,null,null,null,null,null,{"$f":"F38+H38","v":0},"Cart/Reel"]
[]
[null,"III.   CD ROM",null,null,null,null,null,null,null,null,{"$f":"F40+H40","v":0},"Disks"]
[]
[null,"IV.   Magnetic/Optical Disks",null,null,null,null,null,null,null,null,{"$f":"F42+H42","v":0},"Disks"]
[null,null," "]
[null,"V.     Microfilm",null,null,null,null,null,null,null,null,{"$f":"F44+H44","v":0},"Rolls"]
[]
[null,"VI.   Microfiche",null,null,null,null,null,null,null,null,{"$f":"F46+H46","v":0},"Sheets"]
[]
[null,"Microfilm – Number of Rolls Produced Annually:"]
[]
[null,"I. ","By Reporting Agency"]
[]
[null,"II.","By Other State Agencies"]
[]
[null,"III.","By Outside Vendors"]
[]
[null,null,null,"Total Rolls Produced",null,null,null,null,null,null,{"$f":"K50+K52+K54","v":0}]
[]
[null,"Storage Facilities"]
[null,"Does your division store records in storage facilities other than the office or State Records Center?"]
[null,null,null,null,null,null,null,null,null,"Yes   ","X","No "]
[null,"If YES, please provide the following information:"]
[]
[]
[null,null,null,"Name and Address",null,null,null,null,"Media Type",null,"Volume"]
[]
[]
[]
[]
[null,"GS-0704  (REV 08/12)",null,null,null,null,null,null,null,null,"        RDA SW05"]

{"sheet":"Shared Services","index":27,"n_rows":69,"n_cols":12,"rows_kept":69,"cut":false,"hidden":false,"merged":[[8,0,8,12],[9,1,9,7],[10,0,10,12],[4,0,4,12],[5,0,5,12],[6,1,6,9],[7,0,7,12]]}
[]
[]
[]
[" ","   "]
["DEPARTMENT OF GENERAL SERVICES"]
["RECORDS MANAGEMENT DIVISION"]
[]
["RECORDS HOLDING REPORT"]
[" FY July 1, 2011 through June 30, 2012"]
[]
["SEE INSTRUCTIONS ON BACK"]
[]
[null,"Department Name: ",null,"Finance & Administration",null,null,null,null,"Allotment Code:",null,317.18]
[]
[null,"Division Name:    ",null,"Shared Services",null,null,null,null,"County:  ","Davidson"]
[]
[null,"Person Completing Form:",null,null,"Renee Martin",null,null,null,"Phone:    ","615-253-8992"]
[]
[null,"Paper Record(s) Holdings"]
[null,"I.    Records on Hand July 1, 2011              ",null,null,null,null," (beginning volume from previous year) ",null,null,null,100," Cu. Ft."]
[null,null,null,null,null,null,null,null,null," "]
[null,"II.   Records Created",null,null,null,null,null,null,null,"(+)",null,"Cu. Ft."]
[]
[null,"III.  Records Destroyed",null,null,null,null,null,null,null,"( - )",35,"Cu. Ft."]
[]
[null,"IV.  Records Transferred:"]
[null,null,null,"Records Center                                                      ",null,null,null,null,null,"( - )",null,"Cu. Ft."]
[null,null,null,"Library & Archives                                         ",null," ",null,null,null,"( - )    ",null,"Cu. Ft."]
[null,null,null,"Other: (please specify) ______________________________",null,null,null,null,null,"( - )",null,"Cu. Ft."]
[]
[null,"V.   Records on hand June 30, 2012                                  ",null,null,null,null,null,"(Line I + II – III – IV = V)",null,null,{"$f":"SUM(K20+K22-K24-K27-K28-K29)","v":65},"Cu. Ft."]
[]
[null,"Records Category/Description:"]
[null,"Media:",null,null,null,"    Active  ","+"," Inactive",null,"=","    Totals"]
[]
[null,"I.      Paper   ",null," ",null,{"$f":"K31","v":65},null,null,null,null,{"$f":"K31","v":65},"Cu. Ft"]
[]
[null,"II     Cartridge & Magnetic Tapes  ",null,null,null,null,null,null,null,null,{"$f":"F38+H38","v":0},"Cart/Reel"]
[]
[null,"III.   CD ROM",null,null,null,null,null,null,null,null,{"$f":"F40+H40","v":0},"Disks"]
[]
[null,"IV.   Magnetic/Optical Disks",null,null,null,null,null,null,null,null,{"$f":"F42+H42","v":0},"Disks"]
[null,null," "]
[null,"V.     Microfilm",null,null,null,null,null,null,null,null,{"$f":"F44+H44","v":0},"Rolls"]
[]
[null,"VI.   Microfiche",null,null,null,null,null,null,null,null,{"$f":"F46+H46","v":0},"Sheets"]
[]
[null,"Microfilm – Number of Rolls Produced Annually:"]
[]
[null,"I. ","By Reporting Agency"]
[]
[null,"II.","By Other State Agencies"]
[]
[null,"III.","By Outside Vendors"]
[]
[null,null,null,"Total Rolls Produced",null,null,null,null,null,null,{"$f":"K50+K52+K54","v":0}]
[]
[null,"Storage Facilities"]
[null,"Does your division store records in storage facilities other than the office or State Records Center?"]
[null,null,null,null,null,null,null,null,null,"Yes   ","X","No "]
[null,"If YES, please provide the following information:"]
[]
[]
[null,null,null,"Name and Address",null,null,null,null,"Media Type",null,"Volume"]
[]
[]
[]
[]
[null,"GS-0704  (REV 08/12)",null,null,null,null,null,null,null,null,"        RDA SW05"]

{"sheet":"OIR PMC","index":28,"n_rows":69,"n_cols":12,"rows_kept":69,"cut":false,"hidden":false,"merged":[[8,0,8,12],[9,1,9,7],[10,0,10,12],[4,0,4,12],[5,0,5,12],[6,1,6,9],[7,0,7,12]]}
[]
[]
[]
[" ","   "]
["DEPARTMENT OF GENERAL SERVICES"]
["RECORDS MANAGEMENT DIVISION"]
[]
["RECORDS HOLDING REPORT"]
[" FY July 1, 2011 through  June 30, 2012"]
[]
["SEE INSTRUCTIONS ON BACK"]
[]
[null,"Department Name: ",null,"Finance & Administration",null,null,null,null,"Allotment Code:",null,31723]
[]
[null,"Division Name:    ",null,"OIR PMC",null,null,null,null,"County:  ","Davidson"]
[]
[null,"Person Completing Form:",null,null,"Margaret Latch",null,null,null,"Phone:    ","615-741-6891"]
[]
[null,"Paper Record(s) Holdings"]
[null,"I.    Records on Hand July 1, 2011              ",null,null,null,null," (beginning volume from previous year) ",null,null,null,377," Cu. Ft."]
[null,null,null,null,null,null,null,null,null," "]
[null,"II.   Records Created",null,null,null,null,null,null,null,"(+)",null,"Cu. Ft."]
[]
[null,"III.  Records Destroyed",null,null,null,null,null,null,null,"( - )",null,"Cu. Ft."]
[]
[null,"IV.  Records Transferred:"]
[null,null,null,"Records Center                                                      ",null,null,null,null,null,"( - )",null,"Cu. Ft."]
[null,null,null,"Library & Archives                                         ",null," ",null,null,null,"( - )    ",null,"Cu. Ft."]
[null,null,null,"Other: (please specify) ______________________________",null,null,null,null,null,"( - )",null,"Cu. Ft."]
[]
[null,"V.   Records on hand June 30, 2012                                 ",null,null,null,null,null,"(Line I + II – III – IV = V)",null,null,{"$f":"SUM(K20+K22-K24-K27-K28-K29)","v":377},"Cu. Ft."]
[]
[null,"Records Category/Description:"]
[null,"Media:",null,null,null,"    Active  ","+"," Inactive",null,"=","    Totals"]
[]
[null,"I.      Paper   ",null," ",null,{"$f":"K31","v":377},null,null,null,null,{"$f":"K31","v":377},"Cu. Ft"]
[]
[null,"II     Cartridge & Magnetic Tapes  ",null,null,null,null,null,null,null,null,{"$f":"F38+H38","v":0},"Cart/Reel"]
[]
[null,"III.   CD ROM",null,null,null,null,null,null,null,null,{"$f":"F40+H40","v":0},"Disks"]
[]
[null,"IV.   Magnetic/Optical Disks",null,null,null,null,null,null,null,null,{"$f":"F42+H42","v":0},"Disks"]
[null,null," "]
[null,"V.     Microfilm",null,null,null,null,null,null,null,null,{"$f":"F44+H44","v":0},"Rolls"]
[]
[null,"VI.   Microfiche",null,null,null,null,null,null,null,null,{"$f":"F46+H46","v":0},"Sheets"]
[]
[null,"Microfilm – Number of Rolls Produced Annually:"]
[]
[null,"I. ","By Reporting Agency"]
[]
[null,"II.","By Other State Agencies"]
[]
[null,"III.","By Outside Vendors"]
[]
[null,null,null,"Total Rolls Produced",null,null,null,null,null,null,{"$f":"K50+K52+K54","v":0}]
[]
[null,"Storage Facilities"]
[null,"Does your division store records in storage facilities other than the office or State Records Center?"]
[null,null,null,null,null,null,null,null,null,"Yes   ",null,"No "]
[null,"If YES, please provide the following information:"]
[]
[]
[null,null,null,"Name and Address",null,null,null,null,"Media Type",null,"Volume"]
[]
[]
[]
[]
[null,"GS-0704  (REV 08/12)",null,null,null,null,null,null,null,null,"        RDA SW05"]

{"sheet":"ERP","index":29,"n_rows":69,"n_cols":12,"rows_kept":69,"cut":false,"hidden":false,"merged":[[8,0,8,12],[9,1,9,7],[10,0,10,12],[4,0,4,12],[5,0,5,12],[6,1,6,9],[7,0,7,12]]}
[]
[]
[]
[" ","   "]
["DEPARTMENT OF GENERAL SERVICES"]
["RECORDS MANAGEMENT DIVISION"]
[]
["RECORDS HOLDING REPORT"]
[" FY July 1, 2011 through  June 30,  2012"]
[]
["SEE INSTRUCTIONS ON BACK"]
[]
[null,"Department Name: ",null,"Finance & Administration",null,null,null,null,"Allotment Code:",null,317.17]
[]
[null,"Division Name:    ",null,"Enterprise Resource Planning",null,null,null,null,"County:  ","Davidson"]
[]
[null,"Person Completing Form:",null,null,"Dianne L.Cavanah",null,null,null,"Phone:    ","615 253-1020"]
[]
[null,"Paper Record(s) Holdings"]
[null,"I.    Records on Hand July 1, 2011               ",null,null,null,null," (beginning volume from previous year) ",null,null,null,192," Cu. Ft."]
[null,null,null,null,null,null,null,null,null," "]
[null,"II.   Records Created",null,null,null,null,null,null,null,"(+)",null,"Cu. Ft."]
[]
[null,"III.  Records Destroyed",null,null,null,null,null,null,null,"( - )",null,"Cu. Ft."]
[]
[null,"IV.  Records Transferred:"]
[null,null,null,"Records Center                                                      ",null,null,null,null,null,"( - )",null,"Cu. Ft."]
[null,null,null,"Library & Archives                                         ",null," ",null,null,null,"( - )    ",null,"Cu. Ft."]
[null,null,null,"Other: (please specify) ______________________________",null,null,null,null,null,"( - )",null,"Cu. Ft."]
[]
[null,"V.   Records on hand June 30, 2012                                  ",null,null,null,null,null,"(Line I + II – III – IV = V)",null,null,{"$f":"SUM(K20+K22-K24-K27-K28-K29)","v":192},"Cu. Ft."]
[]
[null,"Records Category/Description:"]
[null,"Media:",null,null,null,"    Active  ","+"," Inactive",null,"=","    Totals"]
[]
[null,"I.      Paper   ",null," ",null,{"$f":"K31-H36","v":192},null,null,null,null,{"$f":"K31","v":192},"Cu. Ft"]
[]
[null,"II     Cartridge & Magnetic Tapes  ",null,null,null,null,null,null,null,null,{"$f":"F38+H38","v":0},"Cart/Reel"]
[]
[null,"III.   CD ROM",null,null,null,null,null,null,null,null,{"$f":"F40+H40","v":0},"Disks"]
[]
[null,"IV.   Magnetic/Optical Disks",null,null,null,null,null,null,null,null,{"$f":"F42+H42","v":0},"Disks"]
[null,null," "]
[null,"V.     Microfilm",null,null,null,null,null,null,null,null,{"$f":"F44+H44","v":0},"Rolls"]
[]
[null,"VI.   Microfiche",null,null,null,null,null,null,null,null,{"$f":"F46+H46","v":0},"Sheets"]
[]
[null,"Microfilm – Number of Rolls Produced Annually:"]
[]
[null,"I. ","By Reporting Agency"]
[]
[null,"II.","By Other State Agencies"]
[]
[null,"III.","By Outside Vendors"]
[]
[null,null,null,"Total Rolls Produced",null,null,null,null,null,null,{"$f":"K50+K52+K54","v":0}]
[]
[null,"Storage Facilities"]
[null,"Does your division store records in storage facilities other than the office or State Records Center?"]
[null,null,null,null,null,null,null,null,null,"Yes   ",null,"No "]
[null,"If YES, please provide the following information:"]
[]
[]
[null,null,null,"Name and Address",null,null,null,null,"Media Type",null,"Volume"]
[]
[]
[]
[]
[null,"GS-0704  (REV 08/12)",null,null,null,null,null,null,null,null,"        RDA SW05"]